Workbook

Sheet Title
C13: CBA for
C14: Operational
C15: Technology
C16: capability uplift
C18: DRAFT
C19: 30 November 2023

Sheet Model logic overview
B2: Not included

Sheet CBA >
C13: Cost Benefit Analysis

Sheet Benefits analysis
C2: =RIGHT(CELL("filename",A1),LEN(CELL("filename",A1))-FIND("]",CELL("filename",A1))) -> Benefits analysis | D2: Active Option
C3: [insert option title]
C6: Period commencing | E6: date | I6: ='Time series'!I5 -> 2024-07-01 | J6: ='Time series'!J5 -> 2025-07-01 | K6: ='Time series'!K5 -> 2026-07-01 | L6: ='Time series'!L5 -> 2027-07-01 | M6: ='Time series'!M5 -> 2028-07-01 | N6: ='Time series'!N5 -> 2029-07-01 | O6: ='Time series'!O5 -> 2030-07-01 | P6: ='Time series'!P5 -> 2031-07-01 | Q6: ='Time series'!Q5 -> 2032-07-01 | R6: ='Time series'!R5 -> 2033-07-01 | S6: ='Time series'!S5 -> 2034-07-01 | T6: ='Time series'!T5 -> 2035-07-01 | U6: ='Time series'!U5 -> 2036-07-01 | V6: ='Time series'!V5 -> 2037-07-01 | W6: ='Time series'!W5 -> 2038-07-01 | X6: ='Time series'!X5 -> 2039-07-01 | Y6: ='Time series'!Y5 -> 2040-07-01 | Z6: ='Time series'!Z5 -> 2041-07-01 | AA6: ='Time series'!AA5 -> 2042-07-01 | AB6: ='Time series'!AB5 -> 2043-07-01 | AC6: ='Time series'!AC5 -> 2044-07-01 | AD6: ='Time series'!AD5 -> 2045-07-01 | AE6: ='Time series'!AE5 -> 2046-07-01 | AF6: ='Time series'!AF5 -> 2047-07-01 | AG6: ='Time series'!AG5 -> 2048-07-01 | AH6: ='Time series'!AH5 -> 2049-07-01 | AI6: ='Time series'!AI5 -> 2050-07-01 | AJ6: ='Time series'!AJ5 -> 2051-07-01 | AK6: ='Time series'!AK5 -> 2052-07-01 | AL6: ='Time series'!AL5 -> 2053-07-01 | AM6: ='Time series'!AM5 -> 2054-07-01 | AN6: ='Time series'!AN5 -> 2055-07-01
C7: Period ending | E7: date | I7: ='Time series'!I6 -> 2025-06-30 | J7: ='Time series'!J6 -> 2026-06-30 | K7: ='Time series'!K6 -> 2027-06-30 | L7: ='Time series'!L6 -> 2028-06-30 | M7: ='Time series'!M6 -> 2029-06-30 | N7: ='Time series'!N6 -> 2030-06-30 | O7: ='Time series'!O6 -> 2031-06-30 | P7: ='Time series'!P6 -> 2032-06-30 | Q7: ='Time series'!Q6 -> 2033-06-30 | R7: ='Time series'!R6 -> 2034-06-30 | S7: ='Time series'!S6 -> 2035-06-30 | T7: ='Time series'!T6 -> 2036-06-30 | U7: ='Time series'!U6 -> 2037-06-30 | V7: ='Time series'!V6 -> 2038-06-30 | W7: ='Time series'!W6 -> 2039-06-30 | X7: ='Time series'!X6 -> 2040-06-30 | Y7: ='Time series'!Y6 -> 2041-06-30 | Z7: ='Time series'!Z6 -> 2042-06-30 | AA7: ='Time series'!AA6 -> 2043-06-30 | AB7: ='Time series'!AB6 -> 2044-06-30 | AC7: ='Time series'!AC6 -> 2045-06-30 | AD7: ='Time series'!AD6 -> 2046-06-30 | AE7: ='Time series'!AE6 -> 2047-06-30 | AF7: ='Time series'!AF6 -> 2048-06-30 | AG7: ='Time series'!AG6 -> 2049-06-30 | AH7: ='Time series'!AH6 -> 2050-06-30 | AI7: ='Time series'!AI6 -> 2051-06-30 | AJ7: ='Time series'!AJ6 -> 2052-06-30 | AK7: ='Time series'!AK6 -> 2053-06-30 | AL7: ='Time series'!AL6 -> 2054-06-30 | AM7: ='Time series'!AM6 -> 2055-06-30 | AN7: ='Time series'!AN6 -> 2056-06-30
C8: Period number | E8: number | I8: ='Time series'!I7 -> 1 | J8: ='Time series'!J7 -> 2 | K8: ='Time series'!K7 -> 3 | L8: ='Time series'!L7 -> 4 | M8: ='Time series'!M7 -> 5 | N8: ='Time series'!N7 -> 6 | O8: ='Time series'!O7 -> 7 | P8: ='Time series'!P7 -> 8 | Q8: ='Time series'!Q7 -> 9 | R8: ='Time series'!R7 -> 10 | S8: ='Time series'!S7 -> 11 | T8: ='Time series'!T7 -> 12 | U8: ='Time series'!U7 -> 13 | V8: ='Time series'!V7 -> 14 | W8: ='Time series'!W7 -> 15 | X8: ='Time series'!X7 -> 16 | Y8: ='Time series'!Y7 -> 17 | Z8: ='Time series'!Z7 -> 18 | AA8: ='Time series'!AA7 -> 19 | AB8: ='Time series'!AB7 -> 20 | AC8: ='Time series'!AC7 -> 21 | AD8: ='Time series'!AD7 -> 22 | AE8: ='Time series'!AE7 -> 23 | AF8: ='Time series'!AF7 -> 24 | AG8: ='Time series'!AG7 -> 25 | AH8: ='Time series'!AH7 -> 26 | AI8: ='Time series'!AI7 -> 27 | AJ8: ='Time series'!AJ7 -> 28 | AK8: ='Time series'!AK7 -> 29 | AL8: ='Time series'!AL7 -> 30 | AM8: ='Time series'!AM7 -> 31 | AN8: ='Time series'!AN7 -> 32
C9: Valuation period | E9: flag | I9: ='Time series'!I8 -> 1 | J9: ='Time series'!J8 -> 1 | K9: ='Time series'!K8 -> 1 | L9: ='Time series'!L8 -> 1 | M9: ='Time series'!M8 -> 1 | N9: ='Time series'!N8 -> 1 | O9: ='Time series'!O8 -> 1 | P9: ='Time series'!P8 -> 1 | Q9: ='Time series'!Q8 -> 1 | R9: ='Time series'!R8 -> 1 | S9: ='Time series'!S8 -> 1 | T9: ='Time series'!T8 -> 1 | U9: ='Time series'!U8 -> 1 | V9: ='Time series'!V8 -> 1 | W9: ='Time series'!W8 -> 1 | X9: ='Time series'!X8 -> 1 | Y9: ='Time series'!Y8 -> 1 | Z9: ='Time series'!Z8 -> 1 | AA9: ='Time series'!AA8 -> 1 | AB9: ='Time series'!AB8 -> 1 | AC9: ='Time series'!AC8 -> 1 | AD9: ='Time series'!AD8 -> 1 | AE9: ='Time series'!AE8 -> 1 | AF9: ='Time series'!AF8 -> 1 | AG9: ='Time series'!AG8 -> 1 | AH9: ='Time series'!AH8 -> 1 | AI9: ='Time series'!AI8 -> 1 | AJ9: ='Time series'!AJ8 -> 1 | AK9: ='Time series'!AK8 -> 1 | AL9: ='Time series'!AL8 -> 1 | AM9: ='Time series'!AM8 -> 0 | AN9: ='Time series'!AN8 -> 0
C11: Description | D11: Constant | E11: Unit
A13: =SectionNumber -> 1 | C13: Areas of benefit
B14: =SectionNumber -> 1.1 | C14: Benefits of UNM and data improvements
C16: Power system modelling cost reduciton
C17: Internal labour to validate models and data | D17: =Scen!F22 -> 50 | E17: $'000 AUD | G17: Estimate from planning
C18: Average annaul consultant costs | D18: =Scen!F23 -> 250 | E18: $'000 AUD | G18: Estimate from planning
C19: Percentage saving due to accurate model and data (consulting fees) | D19: =Scen!F24 -> 0.2 | E19: $'000 AUD | G19: Estimate from planning
C20: Modelling cost reduction | E20: $'000 AUD | I20: =$D$17+$D$18*$D$19 -> 100 | J20: 100 | K20: 100 | L20: 100 | M20: 100 | N20: 100 | O20: 100 | P20: 100 | Q20: 100 | R20: 100 | S20: 100 | T20: 100 | U20: 100 | V20: 100 | W20: 100 | X20: 100 | Y20: 100 | Z20: 100 | AA20: 100 | AB20: 100 | AC20: 100 | AD20: 100 | AE20: 100 | AF20: 100 | AG20: 100 | AH20: 100 | AI20: 100 | AJ20: 100 | AK20: 100 | AL20: 100 | AM20: 100 | AN20: 100
C23: Annual UNM and data improvement cost reduciton | E23: $'000 AUD | I23: =I20 -> 100 | J23: 100 | K23: 100 | L23: 100 | M23: 100 | N23: 100 | O23: 100 | P23: 100 | Q23: 100 | R23: 100 | S23: 100 | T23: 100 | U23: 100 | V23: 100 | W23: 100 | X23: 100 | Y23: 100 | Z23: 100 | AA23: 100 | AB23: 100 | AC23: 100 | AD23: 100 | AE23: 100 | AF23: 100 | AG23: 100 | AH23: 100 | AI23: 100 | AJ23: 100 | AK23: 100 | AL23: 100 | AM23: 100 | AN23: 100
B27: =SectionNumber -> 1.2 | C27: Unknown network state (pin boards) - safety risk
C29: Probability method | D29: =Scen!$F$27 -> 2 | E29: choice | G29: Risk quantification procedure
C31: Worker safety | D31: Probability | E31: Cost
C32: No consequence | D32: =CHOOSE($D$29,Const!I32,Const!J32) -> 0.9994801689 | E32: =Const!H32 -> 0 | F32: $'000 AUD
C33: Insignificant | D33: =CHOOSE($D$29,Const!I33,Const!J33) -> 1.015317989e-05 | E33: =Const!H33 -> 14.628 | F33: $'000 AUD
C34: Minor | D34: =CHOOSE($D$29,Const!I34,Const!J34) -> 2.030635978e-05 | E34: =Const!H34 -> 75.57 | F34: $'000 AUD
C35: Moderate | D35: =CHOOSE($D$29,Const!I35,Const!J35) -> 3.045953967e-05 | E35: =Const!H35 -> 277.75 | F35: $'000 AUD
C36: Major | D36: =CHOOSE($D$29,Const!I36,Const!J36) -> 0.000114728 | E36: =Const!H36 -> 5550 | F36: $'000 AUD
C37: Severe | D37: =CHOOSE($D$29,Const!I37,Const!J37) -> 0.000344184 | E37: =Const!H37 -> 25050 | F37: $'000 AUD
C39: Public safety | D39: Probability | E39: Cost
C40: No consequence | D40: =CHOOSE($D$29,Const!I40,Const!J40) -> 0.9994801689 | E40: =Const!H40 -> 0 | F40: $'000 AUD
C41: Insignificant | D41: =CHOOSE($D$29,Const!I41,Const!J41) -> 1.015317989e-05 | E41: =Const!H41 -> 29.256 | F41: $'000 AUD
C42: Minor | D42: =CHOOSE($D$29,Const!I42,Const!J42) -> 2.030635978e-05 | E42: =Const!H42 -> 121.14 | F42: $'000 AUD
C43: Moderate | D43: =CHOOSE($D$29,Const!I43,Const!J43) -> 3.045953967e-05 | E43: =Const!H43 -> 440.5 | F43: $'000 AUD
C44: Major | D44: =CHOOSE($D$29,Const!I44,Const!J44) -> 0.000114728 | E44: =Const!H44 -> 10050 | F44: $'000 AUD
C45: Severe | D45: =CHOOSE($D$29,Const!I45,Const!J45) -> 0.000344184 | E45: =Const!H45 -> 40050 | F45: $'000 AUD
C47: Total expected HSE cost if there is an event | F47: $'000 AUD | I47: =SUMPRODUCT($D$32:$D$37,$E$32:$E$37)+SUMPRODUCT($D$40:$D$45,$E$40:$E$45) -> 24.22245279 | J47: 24.22245279 | K47: 24.22245279 | L47: 24.22245279 | M47: 24.22245279 | N47: 24.22245279 | O47: 24.22245279 | P47: 24.22245279 | Q47: 24.22245279 | R47: 24.22245279 | S47: 24.22245279 | T47: 24.22245279 | U47: 24.22245279 | V47: 24.22245279 | W47: 24.22245279 | X47: 24.22245279 | Y47: 24.22245279 | Z47: 24.22245279 | AA47: 24.22245279 | AB47: 24.22245279 | AC47: 24.22245279 | AD47: 24.22245279 | AE47: 24.22245279 | AF47: 24.22245279 | AG47: 24.22245279 | AH47: 24.22245279 | AI47: 24.22245279 | AJ47: 24.22245279 | AK47: 24.22245279 | AL47: 24.22245279 | AM47: 24.22245279 | AN47: 24.22245279
C49: Average annual switching events (with outage) | D49: =Scen!$F$30 -> 1894 | G49: from outage data records (excludes switching without an outage)
C50: Probability of human error / switching error resulting in an outage | D50: =Scen!F28 -> 0.004 | E50: % | G50: from outage data records
C51: Factor to adjust for activities not captured by current system | D51: =Scen!F29 -> 2 | E51: factor | G51: estiamte to account for switching without an outage
C52: Annual growth rate (increased network complexity, demand growth and switching) | D52: =Scen!$F$18 -> 0.02 | E52: % | I52: =IF(H52="",1,H52*(1+$D$52)) -> 1 | J52: 1.02 | K52: 1.0404 | L52: 1.061208 | M52: 1.08243216 | N52: 1.104080803 | O52: 1.126162419 | P52: 1.148685668 | Q52: 1.171659381 | R52: 1.195092569 | S52: 1.21899442 | T52: 1.243374308 | U52: 1.268241795 | V52: 1.29360663 | W52: 1.319478763 | X52: 1.345868338 | Y52: 1.372785705 | Z52: 1.400241419 | AA52: 1.428246248 | AB52: 1.456811173 | AC52: 1.485947396 | AD52: 1.515666344 | AE52: 1.545979671 | AF52: 1.576899264 | AG52: 1.608437249 | AH52: 1.640605994 | AI52: 1.673418114 | AJ52: 1.706886477 | AK52: 1.741024206 | AL52: 1.77584469 | AM52: 1.811361584 | AN52: 1.847588816
C53: Percentage reduced with base DMS and improved data | D53: =Scen!$F$31 -> 0.5 | E53: % | G53: estimate
C54: Expected number of Human Errors | I54: =I52*$D$49*$D$50*$D$53 -> 3.788 | J54: =J52*$D$49*$D$50*$D$53 -> 3.86376 | K54: 3.9410352 | L54: 4.019855904 | M54: 4.100253022 | N54: 4.182258083 | O54: 4.265903244 | P54: 4.351221309 | Q54: 4.438245735 | R54: 4.52701065 | S54: 4.617550863 | T54: 4.70990188 | U54: 4.804099918 | V54: 4.900181916 | W54: 4.998185554 | X54: 5.098149266 | Y54: 5.200112251 | Z54: 5.304114496 | AA54: 5.410196786 | AB54: 5.518400722 | AC54: 5.628768736 | AD54: 5.741344111 | AE54: 5.856170993 | AF54: 5.973294413 | AG54: 6.092760301 | AH54: 6.214615507 | AI54: 6.338907817 | AJ54: 6.465685974 | AK54: 6.594999693 | AL54: 6.726899687 | AM54: 6.861437681 | AN54: 6.998666434
C57: Forecast average value of safety risk | F57: $'000 AUD | I57: =I47*I54*$D$51 -> 183.5093023 | J57: =J47*J54*$D$51 -> 187.1794884 | K57: 190.9230782 | L57: 194.7415397 | M57: 198.6363705 | N57: 202.6090979 | O57: 206.6612799 | P57: 210.7945055 | Q57: 215.0103956 | R57: 219.3106035 | S57: 223.6968156 | T57: 228.1707519 | U57: 232.7341669 | V57: 237.3888503 | W57: 242.1366273 | X57: 246.9793598 | Y57: 251.918947 | Z57: 256.9573259 | AA57: 262.0964725 | AB57: 267.3384019 | AC57: 272.68517 | AD57: 278.1388734 | AE57: 283.7016508 | AF57: 289.3756838 | AG57: 295.1631975 | AH57: 301.0664615 | AI57: 307.0877907 | AJ57: 313.2295465 | AK57: 319.4941374 | AL57: 325.8840202 | AM57: 332.4017006 | AN57: 339.0497346
B60: =SectionNumber -> 1.3 | C60: Connection process non-compliance costs
C63: Detailed enquiry response (30 days)
C64: Tier 3 penalty | D64: =Const!$D$51 -> 188 | E64: $'000 AUD
C65: Number of FIA per year | D65: =Scen!F34 -> 10 | E65: # | G65: estimate from connections team based on current FY
C66: Growth rate due to energy transistion/econcomic growth | D66: =Scen!$F$18 -> 0.02 | E66: % | I66: =IF(H66="",1,H66*(1+$D66)) -> 1 | J66: 1.02 | K66: 1.0404 | L66: 1.061208 | M66: 1.08243216 | N66: 1.104080803 | O66: 1.126162419 | P66: 1.148685668 | Q66: 1.171659381 | R66: 1.195092569 | S66: 1.21899442 | T66: 1.243374308 | U66: 1.268241795 | V66: 1.29360663 | W66: 1.319478763 | X66: 1.345868338 | Y66: 1.372785705 | Z66: 1.400241419 | AA66: 1.428246248 | AB66: 1.456811173 | AC66: 1.485947396 | AD66: 1.515666344 | AE66: 1.545979671 | AF66: 1.576899264 | AG66: 1.608437249 | AH66: 1.640605994 | AI66: 1.673418114 | AJ66: 1.706886477 | AK66: 1.741024206 | AL66: 1.77584469 | AM66: 1.811361584 | AN66: 1.847588816
C67: Non-compliance rate | D67: =Scen!F35 -> 0.25 | E67: % | G67: estimate from connections team based on recent performance | I67: =$D64*$D65*I66*$D67 -> 470 | J67: 479.4 | K67: 488.988 | L67: 498.76776 | M67: 508.7431152 | N67: 518.9179775 | O67: 529.2963371 | P67: 539.8822638 | Q67: 550.6799091 | R67: 561.6935073 | S67: 572.9273774 | T67: 584.3859249 | U67: 596.0736434 | V67: 607.9951163 | W67: 620.1550186 | X67: 632.558119 | Y67: 645.2092814 | Z67: 658.113467 | AA67: 671.2757364 | AB67: 684.7012511 | AC67: 698.3952761 | AD67: 712.3631816 | AE67: 726.6104453 | AF67: 741.1426542 | AG67: 755.9655073 | AH67: 771.0848174 | AI67: 786.5065137 | AJ67: 802.236644 | AK67: 818.2813769 | AL67: 834.6470044 | AM67: 851.3399445 | AN67: 868.3667434
C70: Probability of incurring penalty | D70: =Scen!F36 -> 0.1 | E70: % | G70: estimate based on recent performance, penalties applying, but no penalties incurred historically
C72: Forecast cost of customer expectations | E72: $'000 AUD | I72: =I67*$D70 -> 47 | J72: 47.94 | K72: 48.8988 | L72: 49.876776 | M72: 50.87431152 | N72: 51.89179775 | O72: 52.92963371 | P72: 53.98822638 | Q72: 55.06799091 | R72: 56.16935073 | S72: 57.29273774 | T72: 58.43859249 | U72: 59.60736434 | V72: 60.79951163 | W72: 62.01550186 | X72: 63.2558119 | Y72: 64.52092814 | Z72: 65.8113467 | AA72: 67.12757364 | AB72: 68.47012511 | AC72: 69.83952761 | AD72: 71.23631816 | AE72: 72.66104453 | AF72: 74.11426542 | AG72: 75.59655073 | AH72: 77.10848174 | AI72: 78.65065137 | AJ72: 80.2236644 | AK72: 81.82813769 | AL72: 83.46470044 | AM72: 85.13399445 | AN72: 86.83667434
B75: =SectionNumber -> 1.4 | C75: Capital (field) efficiency improvement
C77: Number of distribution jobs schedule per year with outage | D77: =Scen!F39 -> 443 | E77: # | G77: from outage data records
C78: Proportion of distribution jobs requiring an outage | D78: =Scen!$F$42 -> 0.25 | E78: %
C79: Total number of distribution jobs per year | D79: =Scen!$F$80 -> 1800 | E79: #
C80: Percentage cancelled due to planning / notification / human error | D80: =Scen!$F$40 -> 0.02 | E80: %
C81: Percentage avoided with base DMS and improved data | D81: =Scen!$F$43 -> 0.25 | E81: %
C82: Average mobilisation cost per job - direct finanical cost to the work | D82: =Scen!F41 -> 10 | E82: $'000 AUD
C83: Annual growth rate (increased network complexity) | D83: =Scen!$F$18 -> 0.02 | E83: % | I83: =IF(H83="",1,H83*(1+$D$83)) -> 1 | J83: 1.02 | K83: 1.0404 | L83: 1.061208 | M83: 1.08243216 | N83: 1.104080803 | O83: 1.126162419 | P83: 1.148685668 | Q83: 1.171659381 | R83: 1.195092569 | S83: 1.21899442 | T83: 1.243374308 | U83: 1.268241795 | V83: 1.29360663 | W83: 1.319478763 | X83: 1.345868338 | Y83: 1.372785705 | Z83: 1.400241419 | AA83: 1.428246248 | AB83: 1.456811173 | AC83: 1.485947396 | AD83: 1.515666344 | AE83: 1.545979671 | AF83: 1.576899264 | AG83: 1.608437249 | AH83: 1.640605994 | AI83: 1.673418114 | AJ83: 1.706886477 | AK83: 1.741024206 | AL83: 1.77584469 | AM83: 1.811361584 | AN83: 1.847588816
C85: Forecast average field delivery efficiency cost | E85: $'000 AUD | I85: =$D$79*$D$80*$D$82*I83*$D$81 -> 90 | J85: =$D$79*$D$80*$D$82*J83*$D$81 -> 91.8 | K85: 93.636 | L85: 95.50872 | M85: 97.4188944 | N85: 99.36727229 | O85: 101.3546177 | P85: 103.3817101 | Q85: 105.4493443 | R85: 107.5583312 | S85: 109.7094978 | T85: 111.9036878 | U85: 114.1417615 | V85: 116.4245967 | W85: 118.7530887 | X85: 121.1281504 | Y85: 123.5507135 | Z85: 126.0217277 | AA85: 128.5421623 | AB85: 131.1130055 | AC85: 133.7352656 | AD85: 136.409971 | AE85: 139.1381704 | AF85: 141.9209338 | AG85: 144.7593525 | AH85: 147.6545395 | AI85: 150.6076303 | AJ85: 153.6197829 | AK85: 156.6921786 | AL85: 159.8260221 | AM85: 163.0225426 | AN85: 166.2829934
B88: =SectionNumber -> 1.5 | C88: Human error / switching error resulting in outages
C90: Annual average lost load | D90: =Scen!F46 -> 2.2139375 | E90: MWh | G90: from outage data records
C91: Customer weighted VCR | D91: =Scen!F47 -> 26.204 | E91: $'000 per MWh
C92: Annual growth rate (increased network complexity) | D92: =Scen!$F$18 -> 0.02 | E92: % | I92: =IF(H92="",1,H92*(1+$D$92)) -> 1 | J92: 1.02 | K92: 1.0404 | L92: 1.061208 | M92: 1.08243216 | N92: 1.104080803 | O92: 1.126162419 | P92: 1.148685668 | Q92: 1.171659381 | R92: 1.195092569 | S92: 1.21899442 | T92: 1.243374308 | U92: 1.268241795 | V92: 1.29360663 | W92: 1.319478763 | X92: 1.345868338 | Y92: 1.372785705 | Z92: 1.400241419 | AA92: 1.428246248 | AB92: 1.456811173 | AC92: 1.485947396 | AD92: 1.515666344 | AE92: 1.545979671 | AF92: 1.576899264 | AG92: 1.608437249 | AH92: 1.640605994 | AI92: 1.673418114 | AJ92: 1.706886477 | AK92: 1.741024206 | AL92: 1.77584469 | AM92: 1.811361584 | AN92: 1.847588816
C93: Annual average value of lost load | D93: =D90*D91 -> 58.01401825 | E93: $'000
C94: Percentage reduced with base DMS and improved data | D94: =Scen!$F$31 -> 0.5 | E94: %
C96: Value of lost load (Human error / switching error) | I96: =$D$93*I92*$D$94 -> 29.00700913 | J96: =$D$93*J92*$D$94 -> 29.58714931 | K96: 30.17889229 | L96: 30.78247014 | M96: 31.39811954 | N96: 32.02608193 | O96: 32.66660357 | P96: 33.31993564 | Q96: 33.98633436 | R96: 34.66606104 | S96: 35.35938226 | T96: 36.06656991 | U96: 36.78790131 | V96: 37.52365933 | W96: 38.27413252 | X96: 39.03961517 | Y96: 39.82040747 | Z96: 40.61681562 | AA96: 41.42915194 | AB96: 42.25773497 | AC96: 43.10288967 | AD96: 43.96494747 | AE96: 44.84424642 | AF96: 45.74113135 | AG96: 46.65595397 | AH96: 47.58907305 | AI96: 48.54085451 | AJ96: 49.5116716 | AK96: 50.50190504 | AL96: 51.51194314 | AM96: 52.542182 | AN96: 53.59302564
B98: =SectionNumber -> 1.6 | C98: Overall outage restoration efficiency - avoiding deterioration of reliabiliy
C100: Avoided deterioration in reliability
C101: Average annaul Lost Load (Unserved Energy, USE) | D101: =Scen!F51 -> 424 | E101: MWh | G101: FY23 RIN data
C102: Customer weighted VCR | D102: =Scen!F52 -> 26.204 | E102: $'000 per MWh
C103: Forecast % avoided lost load / reliability deterioration | D103: =Scen!F53 -> 0.05 | E103: %
C104: Annual growth rate (increased network complexity & demand growth) | D104: =Scen!$F$18 -> 0.02 | E104: % | I104: =IF(H104="",1,H104*(1+$D$104)) -> 1 | J104: =IF(I104="",1,I104*(1+$D$104)) -> 1.02 | K104: 1.0404 | L104: 1.061208 | M104: 1.08243216 | N104: 1.104080803 | O104: 1.126162419 | P104: 1.148685668 | Q104: 1.171659381 | R104: 1.195092569 | S104: 1.21899442 | T104: 1.243374308 | U104: 1.268241795 | V104: 1.29360663 | W104: 1.319478763 | X104: 1.345868338 | Y104: 1.372785705 | Z104: 1.400241419 | AA104: 1.428246248 | AB104: 1.456811173 | AC104: 1.485947396 | AD104: 1.515666344 | AE104: 1.545979671 | AF104: 1.576899264 | AG104: 1.608437249 | AH104: 1.640605994 | AI104: 1.673418114 | AJ104: 1.706886477 | AK104: 1.741024206 | AL104: 1.77584469 | AM104: 1.811361584 | AN104: 1.847588816
C106: Unserved Energy | E106: $'000 AUD | I106: =$D$101*$D$103*$D$102*I104 -> 555.5248 | J106: 566.635296 | K106: 577.9680019 | L106: 589.527362 | M106: 601.3179092 | N106: 613.3442674 | O106: 625.6111527 | P106: 638.1233758 | Q106: 650.8858433 | R106: 663.9035602 | S106: 677.1816314 | T106: 690.725264 | U106: 704.5397693 | V106: 718.6305647 | W106: 733.003176 | X106: 747.6632395 | Y106: 762.6165043 | Z106: 777.8688343 | AA106: 793.426211 | AB106: 809.2947353 | AC106: 825.48063 | AD106: 841.9902426 | AE106: 858.8300474 | AF106: 876.0066484 | AG106: 893.5267813 | AH106: 911.397317 | AI106: 929.6252633 | AJ106: 948.2177686 | AK106: 967.1821239 | AL106: 986.5257664 | AM106: 1006.256282 | AN106: 1026.381407
C108: Major event day
C109: Average annaul Lost Load (Unserved Energy, USE) | D109: =Scen!$F$56 -> 277 | E109: MWh | G109: Average MED USE as recorded in outage data records
C110: Customer weighted VCR | D110: =Scen!F57 -> 26.204 | E110: $ per MWh
C111: Forecast % avoided lost load / reliability deterioration | D111: =Scen!$F$58 -> 0.1 | E111: %
C112: Annual growth rate (increased network complexity & demand growth) | D112: =Scen!$F$18 -> 0.02 | E112: % | I112: =IF(H112="",1,H112*(1+$D$112)) -> 1 | J112: 1.02 | K112: 1.0404 | L112: 1.061208 | M112: 1.08243216 | N112: 1.104080803 | O112: 1.126162419 | P112: 1.148685668 | Q112: 1.171659381 | R112: 1.195092569 | S112: 1.21899442 | T112: 1.243374308 | U112: 1.268241795 | V112: 1.29360663 | W112: 1.319478763 | X112: 1.345868338 | Y112: 1.372785705 | Z112: 1.400241419 | AA112: 1.428246248 | AB112: 1.456811173 | AC112: 1.485947396 | AD112: 1.515666344 | AE112: 1.545979671 | AF112: 1.576899264 | AG112: 1.608437249 | AH112: 1.640605994 | AI112: 1.673418114 | AJ112: 1.706886477 | AK112: 1.741024206 | AL112: 1.77584469 | AM112: 1.811361584 | AN112: 1.847588816
C113: Frequency | D113: =Scen!$F$59 -> 0.6 | E113: %
C115: Unserved Energy | E115: $'000 AUD | I115: =($D$109*$D$111*$D$110*I112)*$D$113 -> 435.51048 | J115: 444.2206896 | K115: 453.1051034 | L115: 462.1672055 | M115: 471.4105496 | N115: 480.8387606 | O115: 490.4555358 | P115: 500.2646465 | Q115: 510.2699394 | R115: 520.4753382 | S115: 530.884845 | T115: 541.5025419 | U115: 552.3325927 | V115: 563.3792446 | W115: 574.6468295 | X115: 586.139766 | Y115: 597.8625614 | Z115: 609.8198126 | AA115: 622.0162088 | AB115: 634.456533 | AC115: 647.1456637 | AD115: 660.088577 | AE115: 673.2903485 | AF115: 686.7561555 | AG115: 700.4912786 | AH115: 714.5011041 | AI115: 728.7911262 | AJ115: 743.3669487 | AK115: 758.2342877 | AL115: 773.3989735 | AM115: 788.8669529 | AN115: 804.644292
C117: Cyclone/major storm condition reliability
C118: Average annaul Lost Load (Unserved Energy, USE) | D118: =Scen!F62 -> 6710 | E118: MWh | G118: Average of TCs Marcus and Carlos as recorded in outage data records
C119: Customer weighted VCR | D119: =Scen!F63 -> 26.204 | E119: $ per MWh
C120: Forecast % avoided lost load / reliability deterioration | D120: =Scen!$F$64 -> 0.1 | E120: %
C121: Annual growth rate (increased network complexity & demand growth) | D121: =Scen!$F$18 -> 0.02 | E121: % | I121: =IF(H121="",1,H121*(1+$D$121)) -> 1 | J121: 1.02 | K121: 1.0404 | L121: 1.061208 | M121: 1.08243216 | N121: 1.104080803 | O121: 1.126162419 | P121: 1.148685668 | Q121: 1.171659381 | R121: 1.195092569 | S121: 1.21899442 | T121: 1.243374308 | U121: 1.268241795 | V121: 1.29360663 | W121: 1.319478763 | X121: 1.345868338 | Y121: 1.372785705 | Z121: 1.400241419 | AA121: 1.428246248 | AB121: 1.456811173 | AC121: 1.485947396 | AD121: 1.515666344 | AE121: 1.545979671 | AF121: 1.576899264 | AG121: 1.608437249 | AH121: 1.640605994 | AI121: 1.673418114 | AJ121: 1.706886477 | AK121: 1.741024206 | AL121: 1.77584469 | AM121: 1.811361584 | AN121: 1.847588816
C122: Frequency | D122: =Scen!F65 -> 0.125 | E122: %
C124: Unserved Energy | E124: $'000 AUD | I124: =($D$118*$D$120*$D$119*I121)*$D$122 -> 2197.8605 | J124: 2241.81771 | K124: 2286.654064 | L124: 2332.387145 | M124: 2379.034888 | N124: 2426.615586 | O124: 2475.147898 | P124: 2524.650856 | Q124: 2575.143873 | R124: 2626.64675 | S124: 2679.179685 | T124: 2732.763279 | U124: 2787.418545 | V124: 2843.166916 | W124: 2900.030254 | X124: 2958.030859 | Y124: 3017.191476 | Z124: 3077.535306 | AA124: 3139.086012 | AB124: 3201.867732 | AC124: 3265.905087 | AD124: 3331.223188 | AE124: 3397.847652 | AF124: 3465.804605 | AG124: 3535.120697 | AH124: 3605.823111 | AI124: 3677.939574 | AJ124: 3751.498365 | AK124: 3826.528332 | AL124: 3903.058899 | AM124: 3981.120077 | AN124: 4060.742478
C127: USE and avoidable outages | E127: $'000 AUD | I127: =I106+I115+I124 -> 3188.89578 | J127: =J106+J115+J124 -> 3252.673696 | K127: 3317.72717 | L127: 3384.081713 | M127: 3451.763347 | N127: 3520.798614 | O127: 3591.214586 | P127: 3663.038878 | Q127: 3736.299656 | R127: 3811.025649 | S127: 3887.246162 | T127: 3964.991085 | U127: 4044.290907 | V127: 4125.176725 | W127: 4207.680259 | X127: 4291.833865 | Y127: 4377.670542 | Z127: 4465.223953 | AA127: 4554.528432 | AB127: 4645.619 | AC127: 4738.53138 | AD127: 4833.302008 | AE127: 4929.968048 | AF127: 5028.567409 | AG127: 5129.138757 | AH127: 5231.721532 | AI127: 5336.355963 | AJ127: 5443.083082 | AK127: 5551.944744 | AL127: 5662.983639 | AM127: 5776.243312 | AN127: 5891.768178
B129: =SectionNumber -> 1.7 | C129: Efficiency in SC raised through reduced SLA costs
C131: Base DMS and improved data - make sure drawings represent normal state of the network
C132: Reduced drawing management and verification for pin up boards | D132: [c-i-c] | E132: #
C133: Annual standard FTE cost | D133: [c-i-c] | E133: $'000 AUD
C134: Overall saving | E134: $'000 AUD | I134: 125 | J134: 125 | K134: 125 | L134: 125 | M134: 125 | N134: 125 | O134: 125 | P134: 125 | Q134: 125 | R134: 125 | S134: 125 | T134: 125 | U134: 125 | V134: 125 | W134: 125 | X134: 125 | Y134: 125 | Z134: 125 | AA134: 125 | AB134: 125 | AC134: 125 | AD134: 125 | AE134: 125 | AF134: 125 | AG134: 125 | AH134: 125 | AI134: 125 | AJ134: 125 | AK134: 125 | AL134: 125 | AM134: 125 | AN134: 125
C136: Pin board updates
C137: Number of FTEs required | D137: [c-i-c] | E137: #
C138: Annual standard FTE cost | D138: [c-i-c] | E138: $'000 AUD
C140: Near real-time risk modelling of distribution network | E140: $'000 AUD | I140: 25 | J140: 25 | K140: 25 | L140: 25 | M140: 25 | N140: 25 | O140: 25 | P140: 25 | Q140: 25 | R140: 25 | S140: 25 | T140: 25 | U140: 25 | V140: 25 | W140: 25 | X140: 25 | Y140: 25 | Z140: 25 | AA140: 25 | AB140: 25 | AC140: 25 | AD140: 25 | AE140: 25 | AF140: 25 | AG140: 25 | AH140: 25 | AI140: 25 | AJ140: 25 | AK140: 25 | AL140: 25 | AM140: 25 | AN140: 25
C142: Switching and permitting process
C143: Number of FTEs required | D143: [c-i-c] | E143: #
C144: Savings in effort | D144: [c-i-c] | E144: %
C145: Annual standard FTE cost | D145: [c-i-c] | E145: $'000 AUD
C147: Near real-time risk modelling of distribution network | E147: $'000 AUD | I147: 250 | J147: 250 | K147: 250 | L147: 250 | M147: 250 | N147: 250 | O147: 250 | P147: 250 | Q147: 250 | R147: 250 | S147: 250 | T147: 250 | U147: 250 | V147: 250 | W147: 250 | X147: 250 | Y147: 250 | Z147: 250 | AA147: 250 | AB147: 250 | AC147: 250 | AD147: 250 | AE147: 250 | AF147: 250 | AG147: 250 | AH147: 250 | AI147: 250 | AJ147: 250 | AK147: 250 | AL147: 250 | AM147: 250 | AN147: 250
C149: SLA efficiency benefits | E149: $'000 AUD | I149: =I134+I140+I147 -> 400 | J149: 400 | K149: 400 | L149: 400 | M149: 400 | N149: 400 | O149: 400 | P149: 400 | Q149: 400 | R149: 400 | S149: 400 | T149: 400 | U149: 400 | V149: 400 | W149: 400 | X149: 400 | Y149: 400 | Z149: 400 | AA149: 400 | AB149: 400 | AC149: 400 | AD149: 400 | AE149: 400 | AF149: 400 | AG149: 400 | AH149: 400 | AI149: 400 | AJ149: 400 | AK149: 400 | AL149: 400 | AM149: 400 | AN149: 400
A153: =SectionNumber -> 2 | C153: Summary of benefits
C155: Value dimension | F155: NPV
B156: =SectionNumber -> 2.1 | C156: Benefits of UNM and data improvements | E156: $'000 AUD | F156: =I156+NPV(D$167,OFFSET(J156,,,,$D$166-1)) -> 1052.362137 | I156: =I23 -> 100 | J156: 100 | K156: 100 | L156: 100 | M156: 100 | N156: 100 | O156: 100 | P156: 100 | Q156: 100 | R156: 100 | S156: 100 | T156: 100 | U156: 100 | V156: 100 | W156: 100 | X156: 100 | Y156: 100 | Z156: 100 | AA156: 100 | AB156: 100 | AC156: 100 | AD156: 100 | AE156: 100 | AF156: 100 | AG156: 100 | AH156: 100 | AI156: 100 | AJ156: 100 | AK156: 100 | AL156: 100 | AM156: 100 | AN156: 100
B157: =SectionNumber -> 2.2 | C157: Value of safety risk | E157: $'000 AUD | F157: 2182.264573 | I157: =I57 -> 183.5093023 | J157: 187.1794884 | K157: 190.9230782 | L157: 194.7415397 | M157: 198.6363705 | N157: 202.6090979 | O157: 206.6612799 | P157: 210.7945055 | Q157: 215.0103956 | R157: 219.3106035 | S157: 223.6968156 | T157: 228.1707519 | U157: 232.7341669 | V157: 237.3888503 | W157: 242.1366273 | X157: 246.9793598 | Y157: 251.918947 | Z157: 256.9573259 | AA157: 262.0964725 | AB157: 267.3384019 | AC157: 272.68517 | AD157: 278.1388734 | AE157: 283.7016508 | AF157: 289.3756838 | AG157: 295.1631975 | AH157: 301.0664615 | AI157: 307.0877907 | AJ157: 313.2295465 | AK157: 319.4941374 | AL157: 325.8840202 | AM157: 332.4017006 | AN157: 339.0497346
B158: =SectionNumber -> 2.3 | C158: Connection process non-compliance costs | E158: $'000 AUD | F158: 558.9168157 | I158: =I72 -> 47 | J158: 47.94 | K158: 48.8988 | L158: 49.876776 | M158: 50.87431152 | N158: 51.89179775 | O158: 52.92963371 | P158: 53.98822638 | Q158: 55.06799091 | R158: 56.16935073 | S158: 57.29273774 | T158: 58.43859249 | U158: 59.60736434 | V158: 60.79951163 | W158: 62.01550186 | X158: 63.2558119 | Y158: 64.52092814 | Z158: 65.8113467 | AA158: 67.12757364 | AB158: 68.47012511 | AC158: 69.83952761 | AD158: 71.23631816 | AE158: 72.66104453 | AF158: 74.11426542 | AG158: 75.59655073 | AH158: 77.10848174 | AI158: 78.65065137 | AJ158: 80.2236644 | AK158: 81.82813769 | AL158: 83.46470044 | AM158: 85.13399445 | AN158: 86.83667434
B159: =SectionNumber -> 2.4 | C159: Capex field delivery efficiency cost | E159: $'000 AUD | F159: 1070.266243 | I159: =I85 -> 90 | J159: 91.8 | K159: 93.636 | L159: 95.50872 | M159: 97.4188944 | N159: 99.36727229 | O159: 101.3546177 | P159: 103.3817101 | Q159: 105.4493443 | R159: 107.5583312 | S159: 109.7094978 | T159: 111.9036878 | U159: 114.1417615 | V159: 116.4245967 | W159: 118.7530887 | X159: 121.1281504 | Y159: 123.5507135 | Z159: 126.0217277 | AA159: 128.5421623 | AB159: 131.1130055 | AC159: 133.7352656 | AD159: 136.409971 | AE159: 139.1381704 | AF159: 141.9209338 | AG159: 144.7593525 | AH159: 147.6545395 | AI159: 150.6076303 | AJ159: 153.6197829 | AK159: 156.6921786 | AL159: 159.8260221 | AM159: 163.0225426 | AN159: 166.2829934
B160: =SectionNumber -> 2.5 | C160: Value of lost load (Human error / switching error) | E160: $'000 AUD | F160: 344.9469186 | I160: =I96 -> 29.00700913 | J160: 29.58714931 | K160: 30.17889229 | L160: 30.78247014 | M160: 31.39811954 | N160: 32.02608193 | O160: 32.66660357 | P160: 33.31993564 | Q160: 33.98633436 | R160: 34.66606104 | S160: 35.35938226 | T160: 36.06656991 | U160: 36.78790131 | V160: 37.52365933 | W160: 38.27413252 | X160: 39.03961517 | Y160: 39.82040747 | Z160: 40.61681562 | AA160: 41.42915194 | AB160: 42.25773497 | AC160: 43.10288967 | AD160: 43.96494747 | AE160: 44.84424642 | AF160: 45.74113135 | AG160: 46.65595397 | AH160: 47.58907305 | AI160: 48.54085451 | AJ160: 49.5116716 | AK160: 50.50190504 | AL160: 51.51194314 | AM160: 52.542182 | AN160: 53.59302564
B161: =SectionNumber -> 2.6 | C161: USE and avoidable outages | E161: $'000 AUD | F161: 37921.86117 | I161: =I127 -> 3188.89578 | J161: 3252.673696 | K161: 3317.72717 | L161: 3384.081713 | M161: 3451.763347 | N161: 3520.798614 | O161: 3591.214586 | P161: 3663.038878 | Q161: 3736.299656 | R161: 3811.025649 | S161: 3887.246162 | T161: 3964.991085 | U161: 4044.290907 | V161: 4125.176725 | W161: 4207.680259 | X161: 4291.833865 | Y161: 4377.670542 | Z161: 4465.223953 | AA161: 4554.528432 | AB161: 4645.619 | AC161: 4738.53138 | AD161: 4833.302008 | AE161: 4929.968048 | AF161: 5028.567409 | AG161: 5129.138757 | AH161: 5231.721532 | AI161: 5336.355963 | AJ161: 5443.083082 | AK161: 5551.944744 | AL161: 5662.983639 | AM161: 5776.243312 | AN161: 5891.768178
B162: =SectionNumber -> 2.7 | C162: SLA efficiency benefits | E162: $'000 AUD | F162: 4209.448548 | I162: =I149 -> 400 | J162: 400 | K162: 400 | L162: 400 | M162: 400 | N162: 400 | O162: 400 | P162: 400 | Q162: 400 | R162: 400 | S162: 400 | T162: 400 | U162: 400 | V162: 400 | W162: 400 | X162: 400 | Y162: 400 | Z162: 400 | AA162: 400 | AB162: 400 | AC162: 400 | AD162: 400 | AE162: 400 | AF162: 400 | AG162: 400 | AH162: 400 | AI162: 400 | AJ162: 400 | AK162: 400 | AL162: 400 | AM162: 400 | AN162: 400
C164: Total foreacst cost of retaining current system | E164: $'000 AUD | I164: =SUM(I156:I162) -> 4038.412091 | J164: 4109.180333 | K164: 4181.36394 | L164: 4254.991219 | M164: 4330.091043 | N164: 4406.692864 | O164: 4484.826721 | P164: 4564.523256 | Q164: 4645.813721 | R164: 4728.729995 | S164: 4813.304595 | T164: 4899.570687 | U164: 4987.562101 | V164: 5077.313343 | W164: 5168.85961 | X164: 5262.236802 | Y164: 5357.481538 | Z164: 5454.631169 | AA164: 5553.723792 | AB164: 5654.798268 | AC164: 5757.894233 | AD164: 5863.052118 | AE164: 5970.31316 | AF164: 6079.719423 | AG164: 6191.313812 | AH164: 6305.140088 | AI164: 6421.24289 | AJ164: 6539.667748 | AK164: 6660.461103 | AL164: 6783.670325 | AM164: 6909.343731 | AN164: 7037.530606
C166: NPV valuation period | D166: =Scen!$F$16 -> 15 | E166: yrs
C167: WACC | D167: =Scen!$F$15 -> 0.0561 | E167: %
C168: Net Present Cost | D168: =NPV(D167,OFFSET(J164,,,,D166-1))+I164 -> 47340.0664 | E168: $'000 AUD
A175: END

Sheet Options analysis
C2: =RIGHT(CELL("filename",A1),LEN(CELL("filename",A1))-FIND("]",CELL("filename",A1))) -> Options analysis | D2: Active Option
C6: Period commencing | E6: date | I6: ='Time series'!I5 -> 2024-07-01 | J6: ='Time series'!J5 -> 2025-07-01 | K6: ='Time series'!K5 -> 2026-07-01 | L6: ='Time series'!L5 -> 2027-07-01 | M6: ='Time series'!M5 -> 2028-07-01 | N6: ='Time series'!N5 -> 2029-07-01 | O6: ='Time series'!O5 -> 2030-07-01 | P6: ='Time series'!P5 -> 2031-07-01 | Q6: ='Time series'!Q5 -> 2032-07-01 | R6: ='Time series'!R5 -> 2033-07-01 | S6: ='Time series'!S5 -> 2034-07-01 | T6: ='Time series'!T5 -> 2035-07-01 | U6: ='Time series'!U5 -> 2036-07-01 | V6: ='Time series'!V5 -> 2037-07-01 | W6: ='Time series'!W5 -> 2038-07-01 | X6: ='Time series'!X5 -> 2039-07-01 | Y6: ='Time series'!Y5 -> 2040-07-01 | Z6: ='Time series'!Z5 -> 2041-07-01 | AA6: ='Time series'!AA5 -> 2042-07-01 | AB6: ='Time series'!AB5 -> 2043-07-01 | AC6: ='Time series'!AC5 -> 2044-07-01 | AD6: ='Time series'!AD5 -> 2045-07-01 | AE6: ='Time series'!AE5 -> 2046-07-01 | AF6: ='Time series'!AF5 -> 2047-07-01 | AG6: ='Time series'!AG5 -> 2048-07-01 | AH6: ='Time series'!AH5 -> 2049-07-01 | AI6: ='Time series'!AI5 -> 2050-07-01 | AJ6: ='Time series'!AJ5 -> 2051-07-01 | AK6: ='Time series'!AK5 -> 2052-07-01 | AL6: ='Time series'!AL5 -> 2053-07-01 | AM6: ='Time series'!AM5 -> 2054-07-01 | AN6: ='Time series'!AN5 -> 2055-07-01
C7: Period ending | E7: date | I7: ='Time series'!I6 -> 2025-06-30 | J7: ='Time series'!J6 -> 2026-06-30 | K7: ='Time series'!K6 -> 2027-06-30 | L7: ='Time series'!L6 -> 2028-06-30 | M7: ='Time series'!M6 -> 2029-06-30 | N7: ='Time series'!N6 -> 2030-06-30 | O7: ='Time series'!O6 -> 2031-06-30 | P7: ='Time series'!P6 -> 2032-06-30 | Q7: ='Time series'!Q6 -> 2033-06-30 | R7: ='Time series'!R6 -> 2034-06-30 | S7: ='Time series'!S6 -> 2035-06-30 | T7: ='Time series'!T6 -> 2036-06-30 | U7: ='Time series'!U6 -> 2037-06-30 | V7: ='Time series'!V6 -> 2038-06-30 | W7: ='Time series'!W6 -> 2039-06-30 | X7: ='Time series'!X6 -> 2040-06-30 | Y7: ='Time series'!Y6 -> 2041-06-30 | Z7: ='Time series'!Z6 -> 2042-06-30 | AA7: ='Time series'!AA6 -> 2043-06-30 | AB7: ='Time series'!AB6 -> 2044-06-30 | AC7: ='Time series'!AC6 -> 2045-06-30 | AD7: ='Time series'!AD6 -> 2046-06-30 | AE7: ='Time series'!AE6 -> 2047-06-30 | AF7: ='Time series'!AF6 -> 2048-06-30 | AG7: ='Time series'!AG6 -> 2049-06-30 | AH7: ='Time series'!AH6 -> 2050-06-30 | AI7: ='Time series'!AI6 -> 2051-06-30 | AJ7: ='Time series'!AJ6 -> 2052-06-30 | AK7: ='Time series'!AK6 -> 2053-06-30 | AL7: ='Time series'!AL6 -> 2054-06-30 | AM7: ='Time series'!AM6 -> 2055-06-30 | AN7: ='Time series'!AN6 -> 2056-06-30
C8: Period number | E8: number | I8: ='Time series'!I7 -> 1 | J8: ='Time series'!J7 -> 2 | K8: ='Time series'!K7 -> 3 | L8: ='Time series'!L7 -> 4 | M8: ='Time series'!M7 -> 5 | N8: ='Time series'!N7 -> 6 | O8: ='Time series'!O7 -> 7 | P8: ='Time series'!P7 -> 8 | Q8: ='Time series'!Q7 -> 9 | R8: ='Time series'!R7 -> 10 | S8: ='Time series'!S7 -> 11 | T8: ='Time series'!T7 -> 12 | U8: ='Time series'!U7 -> 13 | V8: ='Time series'!V7 -> 14 | W8: ='Time series'!W7 -> 15 | X8: ='Time series'!X7 -> 16 | Y8: ='Time series'!Y7 -> 17 | Z8: ='Time series'!Z7 -> 18 | AA8: ='Time series'!AA7 -> 19 | AB8: ='Time series'!AB7 -> 20 | AC8: ='Time series'!AC7 -> 21 | AD8: ='Time series'!AD7 -> 22 | AE8: ='Time series'!AE7 -> 23 | AF8: ='Time series'!AF7 -> 24 | AG8: ='Time series'!AG7 -> 25 | AH8: ='Time series'!AH7 -> 26 | AI8: ='Time series'!AI7 -> 27 | AJ8: ='Time series'!AJ7 -> 28 | AK8: ='Time series'!AK7 -> 29 | AL8: ='Time series'!AL7 -> 30 | AM8: ='Time series'!AM7 -> 31 | AN8: ='Time series'!AN7 -> 32
C9: Valuation period | E9: flag | I9: ='Time series'!I8 -> 1 | J9: ='Time series'!J8 -> 1 | K9: ='Time series'!K8 -> 1 | L9: ='Time series'!L8 -> 1 | M9: ='Time series'!M8 -> 1 | N9: ='Time series'!N8 -> 1 | O9: ='Time series'!O8 -> 1 | P9: ='Time series'!P8 -> 1 | Q9: ='Time series'!Q8 -> 1 | R9: ='Time series'!R8 -> 1 | S9: ='Time series'!S8 -> 1 | T9: ='Time series'!T8 -> 1 | U9: ='Time series'!U8 -> 1 | V9: ='Time series'!V8 -> 1 | W9: ='Time series'!W8 -> 1 | X9: ='Time series'!X8 -> 1 | Y9: ='Time series'!Y8 -> 1 | Z9: ='Time series'!Z8 -> 1 | AA9: ='Time series'!AA8 -> 1 | AB9: ='Time series'!AB8 -> 1 | AC9: ='Time series'!AC8 -> 1 | AD9: ='Time series'!AD8 -> 1 | AE9: ='Time series'!AE8 -> 1 | AF9: ='Time series'!AF8 -> 1 | AG9: ='Time series'!AG8 -> 1 | AH9: ='Time series'!AH8 -> 1 | AI9: ='Time series'!AI8 -> 1 | AJ9: ='Time series'!AJ8 -> 1 | AK9: ='Time series'!AK8 -> 1 | AL9: ='Time series'!AL8 -> 1 | AM9: ='Time series'!AM8 -> 0 | AN9: ='Time series'!AN8 -> 0
C11: Description | D11: Constant | E11: Unit
A13: =SectionNumber -> 1 | C13: Areas of benefit
B14: =SectionNumber -> 1.1 | C14: Optoin 1: Base case / counterfactual
C16: NOT COSTED - identified as not a credible option
C19: Total cost | E19: $'000 AUD | I19: 0 | J19: 0 | K19: 0 | L19: 0 | M19: 0 | N19: 0 | O19: 0 | P19: 0 | Q19: 0 | R19: 0 | S19: 0 | T19: 0 | U19: 0 | V19: 0 | W19: 0 | X19: 0 | Y19: 0 | Z19: 0 | AA19: 0 | AB19: 0 | AC19: 0 | AD19: 0 | AE19: 0 | AF19: 0 | AG19: 0 | AH19: 0 | AI19: 0 | AJ19: 0 | AK19: 0 | AL19: 0 | AM19: 0 | AN19: 0
B23: =SectionNumber -> 1.2 | C23: Option 2: GIS Upgrade
C25: NOTE: Option 2 does not include the DMS or data improvements so there is no incremetnal cost and none of the benefits are obtained.
C27: Capex
C28: Replacement/maintenace of existing systems | E28: $'000 AUD | I28: 0 | J28: 0 | K28: 0 | L28: 0 | M28: 0
C29: Opex - regulatory peirod 2024-29 | E29: $'000 AUD | I29: 0 | J29: 0 | K29: 0 | L29: 0 | M29: 0
C30: Opex - after FY29-30
C31: Total cost | E31: $'000 AUD | I31: =SUM(I28:I30) -> 0 | J31: =SUM(J28:J30) -> 0 | K31: =SUM(K28:K30) -> 0 | L31: =SUM(L28:L30) -> 0 | M31: =SUM(M28:M30) -> 0 | N31: =SUM(N28:N30) -> 0 | O31: =SUM(O28:O30) -> 0 | P31: =SUM(P28:P30) -> 0 | Q31: =SUM(Q28:Q30) -> 0 | R31: =SUM(R28:R30) -> 0 | S31: =SUM(S28:S30) -> 0 | T31: =SUM(T28:T30) -> 0 | U31: =SUM(U28:U30) -> 0 | V31: =SUM(V28:V30) -> 0 | W31: =SUM(W28:W30) -> 0 | X31: =SUM(X28:X30) -> 0 | Y31: =SUM(Y28:Y30) -> 0 | Z31: =SUM(Z28:Z30) -> 0 | AA31: =SUM(AA28:AA30) -> 0 | AB31: =SUM(AB28:AB30) -> 0 | AC31: =SUM(AC28:AC30) -> 0 | AD31: =SUM(AD28:AD30) -> 0 | AE31: =SUM(AE28:AE30) -> 0 | AF31: =SUM(AF28:AF30) -> 0 | AG31: =SUM(AG28:AG30) -> 0 | AH31: =SUM(AH28:AH30) -> 0 | AI31: =SUM(AI28:AI30) -> 0 | AJ31: =SUM(AJ28:AJ30) -> 0 | AK31: =SUM(AK28:AK30) -> 0 | AL31: =SUM(AL28:AL30) -> 0 | AM31: =SUM(AM28:AM30) -> 0 | AN31: =SUM(AN28:AN30) -> 0
C33: Network risk
C34: Rate of benefit received
C35: USE and avoidable outages | E35: % | I35: 0 | J35: 0 | K35: 0 | L35: 0 | M35: 0 | N35: 0 | O35: 0 | P35: 0 | Q35: 0 | R35: 0 | S35: 0 | T35: 0 | U35: 0 | V35: 0 | W35: 0 | X35: 0 | Y35: 0 | Z35: 0 | AA35: 0 | AB35: 0 | AC35: 0 | AD35: 0 | AE35: 0 | AF35: 0 | AG35: 0 | AH35: 0 | AI35: 0 | AJ35: 0 | AK35: 0 | AL35: 0 | AM35: 0 | AN35: 0
C36: SLA efficiency benefits | E36: % | I36: 0 | J36: 0 | K36: 0 | L36: 0 | M36: 0 | N36: 0 | O36: 0 | P36: 0 | Q36: 0 | R36: 0 | S36: 0 | T36: 0 | U36: 0 | V36: 0 | W36: 0 | X36: 0 | Y36: 0 | Z36: 0 | AA36: 0 | AB36: 0 | AC36: 0 | AD36: 0 | AE36: 0 | AF36: 0 | AG36: 0 | AH36: 0 | AI36: 0 | AJ36: 0 | AK36: 0 | AL36: 0 | AM36: 0 | AN36: 0
C37: Benefits of UNM and data improvements | E37: % | I37: 0 | J37: 0 | K37: 0 | L37: 0 | M37: 0 | N37: 0 | O37: 0 | P37: 0 | Q37: 0 | R37: 0 | S37: 0 | T37: 0 | U37: 0 | V37: 0 | W37: 0 | X37: 0 | Y37: 0 | Z37: 0 | AA37: 0 | AB37: 0 | AC37: 0 | AD37: 0 | AE37: 0 | AF37: 0 | AG37: 0 | AH37: 0 | AI37: 0 | AJ37: 0 | AK37: 0 | AL37: 0 | AM37: 0 | AN37: 0
C38: Value of lost load (Human error / switching error) | E38: % | I38: 0 | J38: 0 | K38: 0 | L38: 0 | M38: 0 | N38: 0 | O38: 0 | P38: 0 | Q38: 0 | R38: 0 | S38: 0 | T38: 0 | U38: 0 | V38: 0 | W38: 0 | X38: 0 | Y38: 0 | Z38: 0 | AA38: 0 | AB38: 0 | AC38: 0 | AD38: 0 | AE38: 0 | AF38: 0 | AG38: 0 | AH38: 0 | AI38: 0 | AJ38: 0 | AK38: 0 | AL38: 0 | AM38: 0 | AN38: 0
C39: Connection process non-compliance costs | E39: % | I39: 0 | J39: 0 | K39: 0 | L39: 0 | M39: 0 | N39: 0 | O39: 0 | P39: 0 | Q39: 0 | R39: 0 | S39: 0 | T39: 0 | U39: 0 | V39: 0 | W39: 0 | X39: 0 | Y39: 0 | Z39: 0 | AA39: 0 | AB39: 0 | AC39: 0 | AD39: 0 | AE39: 0 | AF39: 0 | AG39: 0 | AH39: 0 | AI39: 0 | AJ39: 0 | AK39: 0 | AL39: 0 | AM39: 0 | AN39: 0
C40: Capex field delivery efficiency cost | E40: % | I40: 0 | J40: 0 | K40: 0 | L40: 0 | M40: 0 | N40: 0 | O40: 0 | P40: 0 | Q40: 0 | R40: 0 | S40: 0 | T40: 0 | U40: 0 | V40: 0 | W40: 0 | X40: 0 | Y40: 0 | Z40: 0 | AA40: 0 | AB40: 0 | AC40: 0 | AD40: 0 | AE40: 0 | AF40: 0 | AG40: 0 | AH40: 0 | AI40: 0 | AJ40: 0 | AK40: 0 | AL40: 0 | AM40: 0 | AN40: 0
C41: Value of safety risk | E41: % | I41: 0 | J41: 0 | K41: 0 | L41: 0 | M41: 0 | N41: 0 | O41: 0 | P41: 0 | Q41: 0 | R41: 0 | S41: 0 | T41: 0 | U41: 0 | V41: 0 | W41: 0 | X41: 0 | Y41: 0 | Z41: 0 | AA41: 0 | AB41: 0 | AC41: 0 | AD41: 0 | AE41: 0 | AF41: 0 | AG41: 0 | AH41: 0 | AI41: 0 | AJ41: 0 | AK41: 0 | AL41: 0 | AM41: 0 | AN41: 0
C43: Value of risk incurred
C44: USE and avoidable outages | I44: ='Benefits analysis'!I156*I35 -> 0 | J44: ='Benefits analysis'!J156*J35 -> 0 | K44: ='Benefits analysis'!K156*K35 -> 0 | L44: ='Benefits analysis'!L156*L35 -> 0 | M44: ='Benefits analysis'!M156*M35 -> 0 | N44: ='Benefits analysis'!N156*N35 -> 0 | O44: ='Benefits analysis'!O156*O35 -> 0 | P44: ='Benefits analysis'!P156*P35 -> 0 | Q44: ='Benefits analysis'!Q156*Q35 -> 0 | R44: ='Benefits analysis'!R156*R35 -> 0 | S44: ='Benefits analysis'!S156*S35 -> 0 | T44: ='Benefits analysis'!T156*T35 -> 0 | U44: ='Benefits analysis'!U156*U35 -> 0 | V44: ='Benefits analysis'!V156*V35 -> 0 | W44: ='Benefits analysis'!W156*W35 -> 0 | X44: ='Benefits analysis'!X156*X35 -> 0 | Y44: ='Benefits analysis'!Y156*Y35 -> 0 | Z44: ='Benefits analysis'!Z156*Z35 -> 0 | AA44: ='Benefits analysis'!AA156*AA35 -> 0 | AB44: ='Benefits analysis'!AB156*AB35 -> 0 | AC44: ='Benefits analysis'!AC156*AC35 -> 0 | AD44: ='Benefits analysis'!AD156*AD35 -> 0 | AE44: ='Benefits analysis'!AE156*AE35 -> 0 | AF44: ='Benefits analysis'!AF156*AF35 -> 0 | AG44: ='Benefits analysis'!AG156*AG35 -> 0 | AH44: ='Benefits analysis'!AH156*AH35 -> 0 | AI44: ='Benefits analysis'!AI156*AI35 -> 0 | AJ44: ='Benefits analysis'!AJ156*AJ35 -> 0 | AK44: ='Benefits analysis'!AK156*AK35 -> 0 | AL44: ='Benefits analysis'!AL156*AL35 -> 0 | AM44: ='Benefits analysis'!AM156*AM35 -> 0 | AN44: ='Benefits analysis'!AN156*AN35 -> 0
C45: SLA efficiency benefits | I45: ='Benefits analysis'!I157*I36 -> 0 | J45: ='Benefits analysis'!J157*J36 -> 0 | K45: ='Benefits analysis'!K157*K36 -> 0 | L45: ='Benefits analysis'!L157*L36 -> 0 | M45: ='Benefits analysis'!M157*M36 -> 0 | N45: ='Benefits analysis'!N157*N36 -> 0 | O45: ='Benefits analysis'!O157*O36 -> 0 | P45: ='Benefits analysis'!P157*P36 -> 0 | Q45: ='Benefits analysis'!Q157*Q36 -> 0 | R45: ='Benefits analysis'!R157*R36 -> 0 | S45: ='Benefits analysis'!S157*S36 -> 0 | T45: ='Benefits analysis'!T157*T36 -> 0 | U45: ='Benefits analysis'!U157*U36 -> 0 | V45: ='Benefits analysis'!V157*V36 -> 0 | W45: ='Benefits analysis'!W157*W36 -> 0 | X45: ='Benefits analysis'!X157*X36 -> 0 | Y45: ='Benefits analysis'!Y157*Y36 -> 0 | Z45: ='Benefits analysis'!Z157*Z36 -> 0 | AA45: ='Benefits analysis'!AA157*AA36 -> 0 | AB45: ='Benefits analysis'!AB157*AB36 -> 0 | AC45: ='Benefits analysis'!AC157*AC36 -> 0 | AD45: ='Benefits analysis'!AD157*AD36 -> 0 | AE45: ='Benefits analysis'!AE157*AE36 -> 0 | AF45: ='Benefits analysis'!AF157*AF36 -> 0 | AG45: ='Benefits analysis'!AG157*AG36 -> 0 | AH45: ='Benefits analysis'!AH157*AH36 -> 0 | AI45: ='Benefits analysis'!AI157*AI36 -> 0 | AJ45: ='Benefits analysis'!AJ157*AJ36 -> 0 | AK45: ='Benefits analysis'!AK157*AK36 -> 0 | AL45: ='Benefits analysis'!AL157*AL36 -> 0 | AM45: ='Benefits analysis'!AM157*AM36 -> 0 | AN45: ='Benefits analysis'!AN157*AN36 -> 0
C46: Benefits of UNM and data improvements | I46: ='Benefits analysis'!I158*I37 -> 0 | J46: ='Benefits analysis'!J158*J37 -> 0 | K46: ='Benefits analysis'!K158*K37 -> 0 | L46: ='Benefits analysis'!L158*L37 -> 0 | M46: ='Benefits analysis'!M158*M37 -> 0 | N46: ='Benefits analysis'!N158*N37 -> 0 | O46: ='Benefits analysis'!O158*O37 -> 0 | P46: ='Benefits analysis'!P158*P37 -> 0 | Q46: ='Benefits analysis'!Q158*Q37 -> 0 | R46: ='Benefits analysis'!R158*R37 -> 0 | S46: ='Benefits analysis'!S158*S37 -> 0 | T46: ='Benefits analysis'!T158*T37 -> 0 | U46: ='Benefits analysis'!U158*U37 -> 0 | V46: ='Benefits analysis'!V158*V37 -> 0 | W46: ='Benefits analysis'!W158*W37 -> 0 | X46: ='Benefits analysis'!X158*X37 -> 0 | Y46: ='Benefits analysis'!Y158*Y37 -> 0 | Z46: ='Benefits analysis'!Z158*Z37 -> 0 | AA46: ='Benefits analysis'!AA158*AA37 -> 0 | AB46: ='Benefits analysis'!AB158*AB37 -> 0 | AC46: ='Benefits analysis'!AC158*AC37 -> 0 | AD46: ='Benefits analysis'!AD158*AD37 -> 0 | AE46: ='Benefits analysis'!AE158*AE37 -> 0 | AF46: ='Benefits analysis'!AF158*AF37 -> 0 | AG46: ='Benefits analysis'!AG158*AG37 -> 0 | AH46: ='Benefits analysis'!AH158*AH37 -> 0 | AI46: ='Benefits analysis'!AI158*AI37 -> 0 | AJ46: ='Benefits analysis'!AJ158*AJ37 -> 0 | AK46: ='Benefits analysis'!AK158*AK37 -> 0 | AL46: ='Benefits analysis'!AL158*AL37 -> 0 | AM46: ='Benefits analysis'!AM158*AM37 -> 0 | AN46: ='Benefits analysis'!AN158*AN37 -> 0
C47: Value of lost load (Human error / switching error) | I47: ='Benefits analysis'!I159*I38 -> 0 | J47: ='Benefits analysis'!J159*J38 -> 0 | K47: ='Benefits analysis'!K159*K38 -> 0 | L47: ='Benefits analysis'!L159*L38 -> 0 | M47: ='Benefits analysis'!M159*M38 -> 0 | N47: ='Benefits analysis'!N159*N38 -> 0 | O47: ='Benefits analysis'!O159*O38 -> 0 | P47: ='Benefits analysis'!P159*P38 -> 0 | Q47: ='Benefits analysis'!Q159*Q38 -> 0 | R47: ='Benefits analysis'!R159*R38 -> 0 | S47: ='Benefits analysis'!S159*S38 -> 0 | T47: ='Benefits analysis'!T159*T38 -> 0 | U47: ='Benefits analysis'!U159*U38 -> 0 | V47: ='Benefits analysis'!V159*V38 -> 0 | W47: ='Benefits analysis'!W159*W38 -> 0 | X47: ='Benefits analysis'!X159*X38 -> 0 | Y47: ='Benefits analysis'!Y159*Y38 -> 0 | Z47: ='Benefits analysis'!Z159*Z38 -> 0 | AA47: ='Benefits analysis'!AA159*AA38 -> 0 | AB47: ='Benefits analysis'!AB159*AB38 -> 0 | AC47: ='Benefits analysis'!AC159*AC38 -> 0 | AD47: ='Benefits analysis'!AD159*AD38 -> 0 | AE47: ='Benefits analysis'!AE159*AE38 -> 0 | AF47: ='Benefits analysis'!AF159*AF38 -> 0 | AG47: ='Benefits analysis'!AG159*AG38 -> 0 | AH47: ='Benefits analysis'!AH159*AH38 -> 0 | AI47: ='Benefits analysis'!AI159*AI38 -> 0 | AJ47: ='Benefits analysis'!AJ159*AJ38 -> 0 | AK47: ='Benefits analysis'!AK159*AK38 -> 0 | AL47: ='Benefits analysis'!AL159*AL38 -> 0 | AM47: ='Benefits analysis'!AM159*AM38 -> 0 | AN47: ='Benefits analysis'!AN159*AN38 -> 0
C48: Connection process non-compliance costs | I48: ='Benefits analysis'!I160*I39 -> 0 | J48: ='Benefits analysis'!J160*J39 -> 0 | K48: ='Benefits analysis'!K160*K39 -> 0 | L48: ='Benefits analysis'!L160*L39 -> 0 | M48: ='Benefits analysis'!M160*M39 -> 0 | N48: ='Benefits analysis'!N160*N39 -> 0 | O48: ='Benefits analysis'!O160*O39 -> 0 | P48: ='Benefits analysis'!P160*P39 -> 0 | Q48: ='Benefits analysis'!Q160*Q39 -> 0 | R48: ='Benefits analysis'!R160*R39 -> 0 | S48: ='Benefits analysis'!S160*S39 -> 0 | T48: ='Benefits analysis'!T160*T39 -> 0 | U48: ='Benefits analysis'!U160*U39 -> 0 | V48: ='Benefits analysis'!V160*V39 -> 0 | W48: ='Benefits analysis'!W160*W39 -> 0 | X48: ='Benefits analysis'!X160*X39 -> 0 | Y48: ='Benefits analysis'!Y160*Y39 -> 0 | Z48: ='Benefits analysis'!Z160*Z39 -> 0 | AA48: ='Benefits analysis'!AA160*AA39 -> 0 | AB48: ='Benefits analysis'!AB160*AB39 -> 0 | AC48: ='Benefits analysis'!AC160*AC39 -> 0 | AD48: ='Benefits analysis'!AD160*AD39 -> 0 | AE48: ='Benefits analysis'!AE160*AE39 -> 0 | AF48: ='Benefits analysis'!AF160*AF39 -> 0 | AG48: ='Benefits analysis'!AG160*AG39 -> 0 | AH48: ='Benefits analysis'!AH160*AH39 -> 0 | AI48: ='Benefits analysis'!AI160*AI39 -> 0 | AJ48: ='Benefits analysis'!AJ160*AJ39 -> 0 | AK48: ='Benefits analysis'!AK160*AK39 -> 0 | AL48: ='Benefits analysis'!AL160*AL39 -> 0 | AM48: ='Benefits analysis'!AM160*AM39 -> 0 | AN48: ='Benefits analysis'!AN160*AN39 -> 0
C49: Capex field delivery efficiency cost | I49: ='Benefits analysis'!I161*I40 -> 0 | J49: ='Benefits analysis'!J161*J40 -> 0 | K49: ='Benefits analysis'!K161*K40 -> 0 | L49: ='Benefits analysis'!L161*L40 -> 0 | M49: ='Benefits analysis'!M161*M40 -> 0 | N49: ='Benefits analysis'!N161*N40 -> 0 | O49: ='Benefits analysis'!O161*O40 -> 0 | P49: ='Benefits analysis'!P161*P40 -> 0 | Q49: ='Benefits analysis'!Q161*Q40 -> 0 | R49: ='Benefits analysis'!R161*R40 -> 0 | S49: ='Benefits analysis'!S161*S40 -> 0 | T49: ='Benefits analysis'!T161*T40 -> 0 | U49: ='Benefits analysis'!U161*U40 -> 0 | V49: ='Benefits analysis'!V161*V40 -> 0 | W49: ='Benefits analysis'!W161*W40 -> 0 | X49: ='Benefits analysis'!X161*X40 -> 0 | Y49: ='Benefits analysis'!Y161*Y40 -> 0 | Z49: ='Benefits analysis'!Z161*Z40 -> 0 | AA49: ='Benefits analysis'!AA161*AA40 -> 0 | AB49: ='Benefits analysis'!AB161*AB40 -> 0 | AC49: ='Benefits analysis'!AC161*AC40 -> 0 | AD49: ='Benefits analysis'!AD161*AD40 -> 0 | AE49: ='Benefits analysis'!AE161*AE40 -> 0 | AF49: ='Benefits analysis'!AF161*AF40 -> 0 | AG49: ='Benefits analysis'!AG161*AG40 -> 0 | AH49: ='Benefits analysis'!AH161*AH40 -> 0 | AI49: ='Benefits analysis'!AI161*AI40 -> 0 | AJ49: ='Benefits analysis'!AJ161*AJ40 -> 0 | AK49: ='Benefits analysis'!AK161*AK40 -> 0 | AL49: ='Benefits analysis'!AL161*AL40 -> 0 | AM49: ='Benefits analysis'!AM161*AM40 -> 0 | AN49: ='Benefits analysis'!AN161*AN40 -> 0
C50: Value of safety risk | I50: ='Benefits analysis'!I162*I41 -> 0 | J50: ='Benefits analysis'!J162*J41 -> 0 | K50: ='Benefits analysis'!K162*K41 -> 0 | L50: ='Benefits analysis'!L162*L41 -> 0 | M50: ='Benefits analysis'!M162*M41 -> 0 | N50: ='Benefits analysis'!N162*N41 -> 0 | O50: ='Benefits analysis'!O162*O41 -> 0 | P50: ='Benefits analysis'!P162*P41 -> 0 | Q50: ='Benefits analysis'!Q162*Q41 -> 0 | R50: ='Benefits analysis'!R162*R41 -> 0 | S50: ='Benefits analysis'!S162*S41 -> 0 | T50: ='Benefits analysis'!T162*T41 -> 0 | U50: ='Benefits analysis'!U162*U41 -> 0 | V50: ='Benefits analysis'!V162*V41 -> 0 | W50: ='Benefits analysis'!W162*W41 -> 0 | X50: ='Benefits analysis'!X162*X41 -> 0 | Y50: ='Benefits analysis'!Y162*Y41 -> 0 | Z50: ='Benefits analysis'!Z162*Z41 -> 0 | AA50: ='Benefits analysis'!AA162*AA41 -> 0 | AB50: ='Benefits analysis'!AB162*AB41 -> 0 | AC50: ='Benefits analysis'!AC162*AC41 -> 0 | AD50: ='Benefits analysis'!AD162*AD41 -> 0 | AE50: ='Benefits analysis'!AE162*AE41 -> 0 | AF50: ='Benefits analysis'!AF162*AF41 -> 0 | AG50: ='Benefits analysis'!AG162*AG41 -> 0 | AH50: ='Benefits analysis'!AH162*AH41 -> 0 | AI50: ='Benefits analysis'!AI162*AI41 -> 0 | AJ50: ='Benefits analysis'!AJ162*AJ41 -> 0 | AK50: ='Benefits analysis'!AK162*AK41 -> 0 | AL50: ='Benefits analysis'!AL162*AL41 -> 0 | AM50: ='Benefits analysis'!AM162*AM41 -> 0 | AN50: ='Benefits analysis'!AN162*AN41 -> 0
C51: Total benefits | E51: $'000 AUD | I51: =SUM(I44:I50) -> 0 | J51: 0 | K51: 0 | L51: 0 | M51: 0 | N51: 0 | O51: 0 | P51: 0 | Q51: 0 | R51: 0 | S51: 0 | T51: 0 | U51: 0 | V51: 0 | W51: 0 | X51: 0 | Y51: 0 | Z51: 0 | AA51: 0 | AB51: 0 | AC51: 0 | AD51: 0 | AE51: 0 | AF51: 0 | AG51: 0 | AH51: 0 | AI51: 0 | AJ51: 0 | AK51: 0 | AL51: 0 | AM51: 0 | AN51: 0
C54: Total cost | E54: $'000 AUD | I54: =-I31+I51 -> 0 | J54: 0 | K54: 0 | L54: 0 | M54: 0 | N54: 0 | O54: 0 | P54: 0 | Q54: 0 | R54: 0 | S54: 0 | T54: 0 | U54: 0 | V54: 0 | W54: 0 | X54: 0 | Y54: 0 | Z54: 0 | AA54: 0 | AB54: 0 | AC54: 0 | AD54: 0 | AE54: 0 | AF54: 0 | AG54: 0 | AH54: 0 | AI54: 0 | AJ54: 0 | AK54: 0 | AL54: 0 | AM54: 0 | AN54: 0
B57: =SectionNumber -> 1.3 | C57: Option 3: Evolving OT capaibility enhancements
C60: Capex
C61: Replacement/maintenace of existing systems | E61: $'000 AUD | I61: 1415 | J61: 1565 | K61: 2342 | L61: 3400 | M61: 2350
C62: Opex - regulatory peirod 2024-29 | E62: $'000 AUD | I62: 540 | J62: 540 | K62: 540 | L62: 640 | M62: 640
C63: Opex - after FY29-30 | E63: $'000 AUD | N63: 700 | O63: 700 | P63: 700 | Q63: 700 | R63: 700 | S63: 700 | T63: 700 | U63: 700 | V63: 700 | W63: 700 | X63: 700 | Y63: 700 | Z63: 700 | AA63: 700 | AB63: 700 | AC63: 700 | AD63: 700 | AE63: 700 | AF63: 700 | AG63: 700 | AH63: 700 | AI63: 700 | AJ63: 700 | AK63: 700 | AL63: 700 | AM63: 700 | AN63: 700
C64: Total cost | E64: $'000 AUD | I64: =SUM(I61:I63) -> 1955 | J64: =SUM(J61:J63) -> 2105 | K64: 2882 | L64: 4040 | M64: 2990 | N64: 700 | O64: 700 | P64: 700 | Q64: 700 | R64: 700 | S64: 700 | T64: 700 | U64: 700 | V64: 700 | W64: 700 | X64: 700 | Y64: 700 | Z64: 700 | AA64: 700 | AB64: 700 | AC64: 700 | AD64: 700 | AE64: 700 | AF64: 700 | AG64: 700 | AH64: 700 | AI64: 700 | AJ64: 700 | AK64: 700 | AL64: 700 | AM64: 700 | AN64: 700
C66: Network risk
C67: Rate of benefit received
C68: USE and avoidable outages | E68: % | I68: 0 | J68: 0 | K68: 0 | L68: 0 | M68: 0 | N68: 1 | O68: 1 | P68: 1 | Q68: 1 | R68: 1 | S68: 1 | T68: 1 | U68: 1 | V68: 1 | W68: 1 | X68: 1 | Y68: 1 | Z68: 1 | AA68: 1 | AB68: 1 | AC68: 1 | AD68: 1 | AE68: 1 | AF68: 1 | AG68: 1 | AH68: 1 | AI68: 1 | AJ68: 1 | AK68: 1 | AL68: 1 | AM68: 1 | AN68: 1
C69: SLA efficiency benefits | E69: % | I69: 0 | J69: 0 | K69: 0 | L69: 0 | M69: 0 | N69: 1 | O69: 1 | P69: 1 | Q69: 1 | R69: 1 | S69: 1 | T69: 1 | U69: 1 | V69: 1 | W69: 1 | X69: 1 | Y69: 1 | Z69: 1 | AA69: 1 | AB69: 1 | AC69: 1 | AD69: 1 | AE69: 1 | AF69: 1 | AG69: 1 | AH69: 1 | AI69: 1 | AJ69: 1 | AK69: 1 | AL69: 1 | AM69: 1 | AN69: 1
C70: Benefits of UNM and data improvements | E70: % | I70: 0 | J70: 0 | K70: 0 | L70: 0 | M70: 0 | N70: 1 | O70: 1 | P70: 1 | Q70: 1 | R70: 1 | S70: 1 | T70: 1 | U70: 1 | V70: 1 | W70: 1 | X70: 1 | Y70: 1 | Z70: 1 | AA70: 1 | AB70: 1 | AC70: 1 | AD70: 1 | AE70: 1 | AF70: 1 | AG70: 1 | AH70: 1 | AI70: 1 | AJ70: 1 | AK70: 1 | AL70: 1 | AM70: 1 | AN70: 1
C71: Value of lost load (Human error / switching error) | E71: % | I71: 0 | J71: 0 | K71: 0 | L71: 0 | M71: 0 | N71: 1 | O71: 1 | P71: 1 | Q71: 1 | R71: 1 | S71: 1 | T71: 1 | U71: 1 | V71: 1 | W71: 1 | X71: 1 | Y71: 1 | Z71: 1 | AA71: 1 | AB71: 1 | AC71: 1 | AD71: 1 | AE71: 1 | AF71: 1 | AG71: 1 | AH71: 1 | AI71: 1 | AJ71: 1 | AK71: 1 | AL71: 1 | AM71: 1 | AN71: 1
C72: Connection process non-compliance costs | E72: % | I72: 0 | J72: 0 | K72: 0 | L72: 0 | M72: 0 | N72: 1 | O72: 1 | P72: 1 | Q72: 1 | R72: 1 | S72: 1 | T72: 1 | U72: 1 | V72: 1 | W72: 1 | X72: 1 | Y72: 1 | Z72: 1 | AA72: 1 | AB72: 1 | AC72: 1 | AD72: 1 | AE72: 1 | AF72: 1 | AG72: 1 | AH72: 1 | AI72: 1 | AJ72: 1 | AK72: 1 | AL72: 1 | AM72: 1 | AN72: 1
C73: Capex field delivery efficiency cost | E73: % | I73: 0 | J73: 0 | K73: 0 | L73: 0 | M73: 0 | N73: 1 | O73: 1 | P73: 1 | Q73: 1 | R73: 1 | S73: 1 | T73: 1 | U73: 1 | V73: 1 | W73: 1 | X73: 1 | Y73: 1 | Z73: 1 | AA73: 1 | AB73: 1 | AC73: 1 | AD73: 1 | AE73: 1 | AF73: 1 | AG73: 1 | AH73: 1 | AI73: 1 | AJ73: 1 | AK73: 1 | AL73: 1 | AM73: 1 | AN73: 1
C74: Value of safety risk | E74: % | I74: 0 | J74: 0 | K74: 0 | L74: 0 | M74: 0 | N74: 1 | O74: 1 | P74: 1 | Q74: 1 | R74: 1 | S74: 1 | T74: 1 | U74: 1 | V74: 1 | W74: 1 | X74: 1 | Y74: 1 | Z74: 1 | AA74: 1 | AB74: 1 | AC74: 1 | AD74: 1 | AE74: 1 | AF74: 1 | AG74: 1 | AH74: 1 | AI74: 1 | AJ74: 1 | AK74: 1 | AL74: 1 | AM74: 1 | AN74: 1
C76: Value of risk incurred
C77: USE and avoidable outages | I77: ='Benefits analysis'!I156*I68 -> 0 | J77: ='Benefits analysis'!J156*J68 -> 0 | K77: ='Benefits analysis'!K156*K68 -> 0 | L77: ='Benefits analysis'!L156*L68 -> 0 | M77: ='Benefits analysis'!M156*M68 -> 0 | N77: ='Benefits analysis'!N156*N68 -> 100 | O77: ='Benefits analysis'!O156*O68 -> 100 | P77: ='Benefits analysis'!P156*P68 -> 100 | Q77: ='Benefits analysis'!Q156*Q68 -> 100 | R77: ='Benefits analysis'!R156*R68 -> 100 | S77: ='Benefits analysis'!S156*S68 -> 100 | T77: ='Benefits analysis'!T156*T68 -> 100 | U77: ='Benefits analysis'!U156*U68 -> 100 | V77: ='Benefits analysis'!V156*V68 -> 100 | W77: ='Benefits analysis'!W156*W68 -> 100 | X77: ='Benefits analysis'!X156*X68 -> 100 | Y77: ='Benefits analysis'!Y156*Y68 -> 100 | Z77: ='Benefits analysis'!Z156*Z68 -> 100 | AA77: ='Benefits analysis'!AA156*AA68 -> 100 | AB77: ='Benefits analysis'!AB156*AB68 -> 100 | AC77: ='Benefits analysis'!AC156*AC68 -> 100 | AD77: ='Benefits analysis'!AD156*AD68 -> 100 | AE77: ='Benefits analysis'!AE156*AE68 -> 100 | AF77: ='Benefits analysis'!AF156*AF68 -> 100 | AG77: ='Benefits analysis'!AG156*AG68 -> 100 | AH77: ='Benefits analysis'!AH156*AH68 -> 100 | AI77: ='Benefits analysis'!AI156*AI68 -> 100 | AJ77: ='Benefits analysis'!AJ156*AJ68 -> 100 | AK77: ='Benefits analysis'!AK156*AK68 -> 100 | AL77: ='Benefits analysis'!AL156*AL68 -> 100 | AM77: ='Benefits analysis'!AM156*AM68 -> 100 | AN77: ='Benefits analysis'!AN156*AN68 -> 100
C78: SLA efficiency benefits | I78: ='Benefits analysis'!I157*I69 -> 0 | J78: ='Benefits analysis'!J157*J69 -> 0 | K78: ='Benefits analysis'!K157*K69 -> 0 | L78: ='Benefits analysis'!L157*L69 -> 0 | M78: ='Benefits analysis'!M157*M69 -> 0 | N78: ='Benefits analysis'!N157*N69 -> 202.6090979 | O78: ='Benefits analysis'!O157*O69 -> 206.6612799 | P78: ='Benefits analysis'!P157*P69 -> 210.7945055 | Q78: ='Benefits analysis'!Q157*Q69 -> 215.0103956 | R78: ='Benefits analysis'!R157*R69 -> 219.3106035 | S78: ='Benefits analysis'!S157*S69 -> 223.6968156 | T78: ='Benefits analysis'!T157*T69 -> 228.1707519 | U78: ='Benefits analysis'!U157*U69 -> 232.7341669 | V78: ='Benefits analysis'!V157*V69 -> 237.3888503 | W78: ='Benefits analysis'!W157*W69 -> 242.1366273 | X78: ='Benefits analysis'!X157*X69 -> 246.9793598 | Y78: ='Benefits analysis'!Y157*Y69 -> 251.918947 | Z78: ='Benefits analysis'!Z157*Z69 -> 256.9573259 | AA78: ='Benefits analysis'!AA157*AA69 -> 262.0964725 | AB78: ='Benefits analysis'!AB157*AB69 -> 267.3384019 | AC78: ='Benefits analysis'!AC157*AC69 -> 272.68517 | AD78: ='Benefits analysis'!AD157*AD69 -> 278.1388734 | AE78: ='Benefits analysis'!AE157*AE69 -> 283.7016508 | AF78: ='Benefits analysis'!AF157*AF69 -> 289.3756838 | AG78: ='Benefits analysis'!AG157*AG69 -> 295.1631975 | AH78: ='Benefits analysis'!AH157*AH69 -> 301.0664615 | AI78: ='Benefits analysis'!AI157*AI69 -> 307.0877907 | AJ78: ='Benefits analysis'!AJ157*AJ69 -> 313.2295465 | AK78: ='Benefits analysis'!AK157*AK69 -> 319.4941374 | AL78: ='Benefits analysis'!AL157*AL69 -> 325.8840202 | AM78: ='Benefits analysis'!AM157*AM69 -> 332.4017006 | AN78: ='Benefits analysis'!AN157*AN69 -> 339.0497346
C79: Benefits of UNM and data improvements | I79: ='Benefits analysis'!I158*I70 -> 0 | J79: ='Benefits analysis'!J158*J70 -> 0 | K79: ='Benefits analysis'!K158*K70 -> 0 | L79: ='Benefits analysis'!L158*L70 -> 0 | M79: ='Benefits analysis'!M158*M70 -> 0 | N79: ='Benefits analysis'!N158*N70 -> 51.89179775 | O79: ='Benefits analysis'!O158*O70 -> 52.92963371 | P79: ='Benefits analysis'!P158*P70 -> 53.98822638 | Q79: ='Benefits analysis'!Q158*Q70 -> 55.06799091 | R79: ='Benefits analysis'!R158*R70 -> 56.16935073 | S79: ='Benefits analysis'!S158*S70 -> 57.29273774 | T79: ='Benefits analysis'!T158*T70 -> 58.43859249 | U79: ='Benefits analysis'!U158*U70 -> 59.60736434 | V79: ='Benefits analysis'!V158*V70 -> 60.79951163 | W79: ='Benefits analysis'!W158*W70 -> 62.01550186 | X79: ='Benefits analysis'!X158*X70 -> 63.2558119 | Y79: ='Benefits analysis'!Y158*Y70 -> 64.52092814 | Z79: ='Benefits analysis'!Z158*Z70 -> 65.8113467 | AA79: ='Benefits analysis'!AA158*AA70 -> 67.12757364 | AB79: ='Benefits analysis'!AB158*AB70 -> 68.47012511 | AC79: ='Benefits analysis'!AC158*AC70 -> 69.83952761 | AD79: ='Benefits analysis'!AD158*AD70 -> 71.23631816 | AE79: ='Benefits analysis'!AE158*AE70 -> 72.66104453 | AF79: ='Benefits analysis'!AF158*AF70 -> 74.11426542 | AG79: ='Benefits analysis'!AG158*AG70 -> 75.59655073 | AH79: ='Benefits analysis'!AH158*AH70 -> 77.10848174 | AI79: ='Benefits analysis'!AI158*AI70 -> 78.65065137 | AJ79: ='Benefits analysis'!AJ158*AJ70 -> 80.2236644 | AK79: ='Benefits analysis'!AK158*AK70 -> 81.82813769 | AL79: ='Benefits analysis'!AL158*AL70 -> 83.46470044 | AM79: ='Benefits analysis'!AM158*AM70 -> 85.13399445 | AN79: ='Benefits analysis'!AN158*AN70 -> 86.83667434
C80: Value of lost load (Human error / switching error) | I80: ='Benefits analysis'!I159*I71 -> 0 | J80: ='Benefits analysis'!J159*J71 -> 0 | K80: ='Benefits analysis'!K159*K71 -> 0 | L80: ='Benefits analysis'!L159*L71 -> 0 | M80: ='Benefits analysis'!M159*M71 -> 0 | N80: ='Benefits analysis'!N159*N71 -> 99.36727229 | O80: ='Benefits analysis'!O159*O71 -> 101.3546177 | P80: ='Benefits analysis'!P159*P71 -> 103.3817101 | Q80: ='Benefits analysis'!Q159*Q71 -> 105.4493443 | R80: ='Benefits analysis'!R159*R71 -> 107.5583312 | S80: ='Benefits analysis'!S159*S71 -> 109.7094978 | T80: ='Benefits analysis'!T159*T71 -> 111.9036878 | U80: ='Benefits analysis'!U159*U71 -> 114.1417615 | V80: ='Benefits analysis'!V159*V71 -> 116.4245967 | W80: ='Benefits analysis'!W159*W71 -> 118.7530887 | X80: ='Benefits analysis'!X159*X71 -> 121.1281504 | Y80: ='Benefits analysis'!Y159*Y71 -> 123.5507135 | Z80: ='Benefits analysis'!Z159*Z71 -> 126.0217277 | AA80: ='Benefits analysis'!AA159*AA71 -> 128.5421623 | AB80: ='Benefits analysis'!AB159*AB71 -> 131.1130055 | AC80: ='Benefits analysis'!AC159*AC71 -> 133.7352656 | AD80: ='Benefits analysis'!AD159*AD71 -> 136.409971 | AE80: ='Benefits analysis'!AE159*AE71 -> 139.1381704 | AF80: ='Benefits analysis'!AF159*AF71 -> 141.9209338 | AG80: ='Benefits analysis'!AG159*AG71 -> 144.7593525 | AH80: ='Benefits analysis'!AH159*AH71 -> 147.6545395 | AI80: ='Benefits analysis'!AI159*AI71 -> 150.6076303 | AJ80: ='Benefits analysis'!AJ159*AJ71 -> 153.6197829 | AK80: ='Benefits analysis'!AK159*AK71 -> 156.6921786 | AL80: ='Benefits analysis'!AL159*AL71 -> 159.8260221 | AM80: ='Benefits analysis'!AM159*AM71 -> 163.0225426 | AN80: ='Benefits analysis'!AN159*AN71 -> 166.2829934
C81: Connection process non-compliance costs | I81: ='Benefits analysis'!I160*I72 -> 0 | J81: ='Benefits analysis'!J160*J72 -> 0 | K81: ='Benefits analysis'!K160*K72 -> 0 | L81: ='Benefits analysis'!L160*L72 -> 0 | M81: ='Benefits analysis'!M160*M72 -> 0 | N81: ='Benefits analysis'!N160*N72 -> 32.02608193 | O81: ='Benefits analysis'!O160*O72 -> 32.66660357 | P81: ='Benefits analysis'!P160*P72 -> 33.31993564 | Q81: ='Benefits analysis'!Q160*Q72 -> 33.98633436 | R81: ='Benefits analysis'!R160*R72 -> 34.66606104 | S81: ='Benefits analysis'!S160*S72 -> 35.35938226 | T81: ='Benefits analysis'!T160*T72 -> 36.06656991 | U81: ='Benefits analysis'!U160*U72 -> 36.78790131 | V81: ='Benefits analysis'!V160*V72 -> 37.52365933 | W81: ='Benefits analysis'!W160*W72 -> 38.27413252 | X81: ='Benefits analysis'!X160*X72 -> 39.03961517 | Y81: ='Benefits analysis'!Y160*Y72 -> 39.82040747 | Z81: ='Benefits analysis'!Z160*Z72 -> 40.61681562 | AA81: ='Benefits analysis'!AA160*AA72 -> 41.42915194 | AB81: ='Benefits analysis'!AB160*AB72 -> 42.25773497 | AC81: ='Benefits analysis'!AC160*AC72 -> 43.10288967 | AD81: ='Benefits analysis'!AD160*AD72 -> 43.96494747 | AE81: ='Benefits analysis'!AE160*AE72 -> 44.84424642 | AF81: ='Benefits analysis'!AF160*AF72 -> 45.74113135 | AG81: ='Benefits analysis'!AG160*AG72 -> 46.65595397 | AH81: ='Benefits analysis'!AH160*AH72 -> 47.58907305 | AI81: ='Benefits analysis'!AI160*AI72 -> 48.54085451 | AJ81: ='Benefits analysis'!AJ160*AJ72 -> 49.5116716 | AK81: ='Benefits analysis'!AK160*AK72 -> 50.50190504 | AL81: ='Benefits analysis'!AL160*AL72 -> 51.51194314 | AM81: ='Benefits analysis'!AM160*AM72 -> 52.542182 | AN81: ='Benefits analysis'!AN160*AN72 -> 53.59302564
C82: Capex field delivery efficiency cost | I82: ='Benefits analysis'!I161*I73 -> 0 | J82: ='Benefits analysis'!J161*J73 -> 0 | K82: ='Benefits analysis'!K161*K73 -> 0 | L82: ='Benefits analysis'!L161*L73 -> 0 | M82: ='Benefits analysis'!M161*M73 -> 0 | N82: ='Benefits analysis'!N161*N73 -> 3520.798614 | O82: ='Benefits analysis'!O161*O73 -> 3591.214586 | P82: ='Benefits analysis'!P161*P73 -> 3663.038878 | Q82: ='Benefits analysis'!Q161*Q73 -> 3736.299656 | R82: ='Benefits analysis'!R161*R73 -> 3811.025649 | S82: ='Benefits analysis'!S161*S73 -> 3887.246162 | T82: ='Benefits analysis'!T161*T73 -> 3964.991085 | U82: ='Benefits analysis'!U161*U73 -> 4044.290907 | V82: ='Benefits analysis'!V161*V73 -> 4125.176725 | W82: ='Benefits analysis'!W161*W73 -> 4207.680259 | X82: ='Benefits analysis'!X161*X73 -> 4291.833865 | Y82: ='Benefits analysis'!Y161*Y73 -> 4377.670542 | Z82: ='Benefits analysis'!Z161*Z73 -> 4465.223953 | AA82: ='Benefits analysis'!AA161*AA73 -> 4554.528432 | AB82: ='Benefits analysis'!AB161*AB73 -> 4645.619 | AC82: ='Benefits analysis'!AC161*AC73 -> 4738.53138 | AD82: ='Benefits analysis'!AD161*AD73 -> 4833.302008 | AE82: ='Benefits analysis'!AE161*AE73 -> 4929.968048 | AF82: ='Benefits analysis'!AF161*AF73 -> 5028.567409 | AG82: ='Benefits analysis'!AG161*AG73 -> 5129.138757 | AH82: ='Benefits analysis'!AH161*AH73 -> 5231.721532 | AI82: ='Benefits analysis'!AI161*AI73 -> 5336.355963 | AJ82: ='Benefits analysis'!AJ161*AJ73 -> 5443.083082 | AK82: ='Benefits analysis'!AK161*AK73 -> 5551.944744 | AL82: ='Benefits analysis'!AL161*AL73 -> 5662.983639 | AM82: ='Benefits analysis'!AM161*AM73 -> 5776.243312 | AN82: ='Benefits analysis'!AN161*AN73 -> 5891.768178
C83: Value of safety risk | I83: ='Benefits analysis'!I162*I74 -> 0 | J83: ='Benefits analysis'!J162*J74 -> 0 | K83: ='Benefits analysis'!K162*K74 -> 0 | L83: ='Benefits analysis'!L162*L74 -> 0 | M83: ='Benefits analysis'!M162*M74 -> 0 | N83: ='Benefits analysis'!N162*N74 -> 400 | O83: ='Benefits analysis'!O162*O74 -> 400 | P83: ='Benefits analysis'!P162*P74 -> 400 | Q83: ='Benefits analysis'!Q162*Q74 -> 400 | R83: ='Benefits analysis'!R162*R74 -> 400 | S83: ='Benefits analysis'!S162*S74 -> 400 | T83: ='Benefits analysis'!T162*T74 -> 400 | U83: ='Benefits analysis'!U162*U74 -> 400 | V83: ='Benefits analysis'!V162*V74 -> 400 | W83: ='Benefits analysis'!W162*W74 -> 400 | X83: ='Benefits analysis'!X162*X74 -> 400 | Y83: ='Benefits analysis'!Y162*Y74 -> 400 | Z83: ='Benefits analysis'!Z162*Z74 -> 400 | AA83: ='Benefits analysis'!AA162*AA74 -> 400 | AB83: ='Benefits analysis'!AB162*AB74 -> 400 | AC83: ='Benefits analysis'!AC162*AC74 -> 400 | AD83: ='Benefits analysis'!AD162*AD74 -> 400 | AE83: ='Benefits analysis'!AE162*AE74 -> 400 | AF83: ='Benefits analysis'!AF162*AF74 -> 400 | AG83: ='Benefits analysis'!AG162*AG74 -> 400 | AH83: ='Benefits analysis'!AH162*AH74 -> 400 | AI83: ='Benefits analysis'!AI162*AI74 -> 400 | AJ83: ='Benefits analysis'!AJ162*AJ74 -> 400 | AK83: ='Benefits analysis'!AK162*AK74 -> 400 | AL83: ='Benefits analysis'!AL162*AL74 -> 400 | AM83: ='Benefits analysis'!AM162*AM74 -> 400 | AN83: ='Benefits analysis'!AN162*AN74 -> 400
C84: Total benefits | E84: $'000 AUD | I84: =SUM(I77:I83) -> 0 | J84: 0 | K84: 0 | L84: 0 | M84: 0 | N84: 4406.692864 | O84: 4484.826721 | P84: 4564.523256 | Q84: 4645.813721 | R84: 4728.729995 | S84: 4813.304595 | T84: 4899.570687 | U84: 4987.562101 | V84: 5077.313343 | W84: 5168.85961 | X84: 5262.236802 | Y84: 5357.481538 | Z84: 5454.631169 | AA84: 5553.723792 | AB84: 5654.798268 | AC84: 5757.894233 | AD84: 5863.052118 | AE84: 5970.31316 | AF84: 6079.719423 | AG84: 6191.313812 | AH84: 6305.140088 | AI84: 6421.24289 | AJ84: 6539.667748 | AK84: 6660.461103 | AL84: 6783.670325 | AM84: 6909.343731 | AN84: 7037.530606
C87: Total | E87: $'000 AUD | I87: =-I64+I84 -> -1955 | J87: -2105 | K87: -2882 | L87: -4040 | M87: -2990 | N87: 3706.692864 | O87: 3784.826721 | P87: 3864.523256 | Q87: 3945.813721 | R87: 4028.729995 | S87: 4113.304595 | T87: 4199.570687 | U87: 4287.562101 | V87: 4377.313343 | W87: 4468.85961 | X87: 4562.236802 | Y87: 4657.481538 | Z87: 4754.631169 | AA87: 4853.723792 | AB87: 4954.798268 | AC87: 5057.894233 | AD87: 5163.052118 | AE87: 5270.31316 | AF87: 5379.719423 | AG87: 5491.313812 | AH87: 5605.140088 | AI87: 5721.24289 | AJ87: 5839.667748 | AK87: 5960.461103 | AL87: 6083.670325 | AM87: 6209.343731 | AN87: 6337.530606
B90: =SectionNumber -> 1.4 | C90: Option 4: New consolidated ADMS platform
C93: NOT COSTED - identified as not a feasible option
C96: Total | E96: $'000 AUD | I96: 0 | J96: 0 | K96: 0 | L96: 0 | M96: 0 | N96: 0 | O96: 0 | P96: 0 | Q96: 0 | R96: 0 | S96: 0 | T96: 0 | U96: 0 | V96: 0 | W96: 0 | X96: 0 | Y96: 0 | Z96: 0 | AA96: 0 | AB96: 0 | AC96: 0 | AD96: 0 | AE96: 0 | AF96: 0 | AG96: 0 | AH96: 0 | AI96: 0 | AJ96: 0 | AK96: 0 | AL96: 0 | AM96: 0 | AN96: 0
A103: END

Sheet Outputs
C2: =RIGHT(CELL("filename",A1),LEN(CELL("filename",A1))-FIND("]",CELL("filename",A1))) -> Outputs | D2: Active Option
C6: Description | D6: Constant | E6: Unit
A8: =SectionNumber -> 1 | C8: Control
C10: Active scenario | D10: 1
A13: =SectionNumber -> 2 | C13: Summary of options analysis under active scenario
C15: WACC | D15: =Scen!$F$15 -> 0.0561
C16: NPV Valuation period | D16: =Scen!$F$16 -> 15
D18: NPV | E18: NPC (capex & opex) | F18: NPV Benefits
C19: Optoin 1: Base case / counterfactual | D19: 0 | E19: 0 | F19: 0
C20: Option 2: GIS Upgrade | D20: =NPV($D$15,OFFSET('Options analysis'!I54,,,,$D$16-1))+'Options analysis'!I54 -> 0 | E20: =NPV($D$15,OFFSET('Options analysis'!I31,,,,$D$16-1))+'Options analysis'!I31 -> 0 | F20: =NPV($D$15,OFFSET('Options analysis'!I51,,,,$D$16-1))+'Options analysis'!I51 -> 0
C21: Option 3: Evolving OT capaibility enhancements | D21: =NPV($D$15,OFFSET('Options analysis'!I87,,,,$D$16-1))+'Options analysis'!I87 -> 7421.847845 | E21: =NPV($D$15,OFFSET('Options analysis'!I64,,,,$D$16-1))+'Options analysis'!I64 -> 17349.92794 | F21: =NPV($D$15,OFFSET('Options analysis'!I84,,,,$D$16-1))+'Options analysis'!I84 -> 24771.77579
C22: Option 4: New consolidated ADMS platform | D22: 0 | E22: 0 | F22: 0
D24: NPV (compared to Option 1) | E24: BCR | F24: Rank
C25: Optoin 1: Base case / counterfactual | D25: 0 | E25: 0 | F25: 0
C26: Option 2: GIS Upgrade | D26: =D20-$D$19 -> 0 | E26: =IFERROR(F20/E20,0) -> 0 | F26: =RANK(D26,$D$26:$D$27,0) -> 2
C27: Option 3: Evolving OT capaibility enhancements | D27: =D21-$D$19 -> 7421.847845 | E27: =F21/E21 -> 1.427773987 | F27: =RANK(D27,$D$26:$D$27,0) -> 1
C28: Option 4: New consolidated ADMS platform | D28: 0 | E28: 0 | F28: 0
A31: =SectionNumber -> 3 | C31: Scenario analysis
C34: NPV | D34: Data table input formula | E34: 1 | F34: 2 | G34: 3 | H34: Weighted outcome | I34: Rank
C35: Optoin 1: Base case / counterfactual | D35: =D25 -> 0 | E35: 0 | F35: 0 | G35: 0 | H35: =SUMPRODUCT(E35:G35,$E$47:$G$47) -> 0 | I35: =RANK(H35,$H$35:$H$38,0) -> 2
C36: Option 2: GIS Upgrade | D36: =D26 -> 0 | E36: 0 | F36: 0 | G36: 0 | H36: =SUMPRODUCT(E36:G36,$E$47:$G$47) -> 0 | I36: =RANK(H36,$H$35:$H$38,0) -> 2
C37: Option 3: Evolving OT capaibility enhancements | D37: =D27 -> 7421.847845 | E37: 7421.847845 | F37: 964.1176453 | G37: 57125.00551 | H37: =SUMPRODUCT(E37:G37,$E$47:$G$47) -> 18233.20471 | I37: =RANK(H37,$H$35:$H$38,0) -> 1
C38: Option 4: New consolidated ADMS platform | D38: =D28 -> 0 | E38: 0 | F38: 0 | G38: 0 | H38: 0 | I38: 2
C41: BCR | D41: Data table input formula | E41: 1 | F41: 2 | G41: 3 | H41: Weighted outcome | I41: Rank
C42: Optoin 1: Base case / counterfactual | D42: =E25 -> 0 | E42: 0 | F42: 0 | G42: 0 | H42: =SUMPRODUCT(E42:G42,$E$47:$G$47) -> 0 | I42: =RANK(H42,$H$42:$H$45,0) -> 2
C43: Option 2: GIS Upgrade | D43: =E26 -> 0 | E43: 0 | F43: 0 | G43: 0 | H43: =SUMPRODUCT(E43:G43,$E$47:$G$47) -> 0 | I43: =RANK(H43,$H$42:$H$45,0) -> 2
C44: Option 3: Evolving OT capaibility enhancements | D44: =E27 -> 1.427773987 | E44: 1.427773987 | F44: 1.055568971 | G44: 4.292521196 | H44: =SUMPRODUCT(E44:G44,$E$47:$G$47) -> 2.050909535 | I44: 1
C45: Option 4: New consolidated ADMS platform | D45: 0 | E45: 0 | F45: 0 | G45: 0 | H45: 0 | I45: 2
C47: Scenario weighting | E47: 0.5 | F47: 0.25 | G47: 0.25
A50: =SectionNumber -> 4 | C50: Charts
C52: Value dimension | D52: NPV
C53: USE and avoidable outages | D53: =VLOOKUP(C53,'Benefits analysis'!$C$156:$F$162,4,FALSE) -> 37921.86117
C54: SLA efficiency benefits | D54: =VLOOKUP(C54,'Benefits analysis'!$C$156:$F$162,4,FALSE) -> 4209.448548
C55: Benefits of UNM and data improvements | D55: =VLOOKUP(C55,'Benefits analysis'!$C$156:$F$162,4,FALSE) -> 1052.362137
C56: Value of lost load (Human error / switching error) | D56: =VLOOKUP(C56,'Benefits analysis'!$C$156:$F$162,4,FALSE) -> 344.9469186
C57: Connection process non-compliance costs | D57: =VLOOKUP(C57,'Benefits analysis'!$C$156:$F$162,4,FALSE) -> 558.9168157
C58: Capex field delivery efficiency cost | D58: =VLOOKUP(C58,'Benefits analysis'!$C$156:$F$162,4,FALSE) -> 1070.266243
C59: Value of safety risk | D59: =VLOOKUP(C59,'Benefits analysis'!$C$156:$F$162,4,FALSE) -> 2182.264573
C62: Waterfall chart items | D62: Indicative cost for scale only
C63: Quantified value | D63: =SUM(D53:D61) -> 47340.0664
C64: Supported system | D64: 10000
C65: SOCI | D65: 5000
C66: BAU network management | D66: 2500
C67: Compliance (licence) | D67: 10000
C68: Key person risk | D68: 2500
A76: END

Sheet Inputs
C13: Inputs

Sheet Scen
B2: =RIGHT(CELL("filename", B2), LEN(CELL("filename", B2)) - SEARCH("]", CELL("filename", B2))) -> Scen | E2: Active Scenario
E7: Active scenario | F7: =Outputs!$D$10 -> 1 | K7: =MATCH(F7,$L$7:$S$7,0) -> 2 | M7: 1 | N7: 2 | O7: 3 | P7: 4 | Q7: 5 | R7: 6
E8: Comparison scenario | F8: 1 | K8: =MATCH($F8,$L$7:$S$7,0) -> 2
E9: Total comparison column differences | K9: =SUM(K12:K86) -> 0 | M9: Expected case | N9: Low growth, Low risk, Low benefit | O9: High growth, High risk, High benefit
E11: Description | F11: Constant | G11: Unit | H11: Comment
A12: start variable range
C14: Financial data
E15: Discount rate | F15: =INDEX($L15:$S15,$K$7) -> 0.0561 | G15: % | H15: AER draft determination | K15: =IFERROR(IF(ABS(F15 - INDEX(L15:S15,$K$8)) < 0.001, 0, 1),0) -> 0 | M15: 0.0561 | N15: 0.0561 | O15: 0.0561
E16: NPV valuation period | F16: =INDEX($L16:$S16,$K$7) -> 15 | G16: yrs | K16: =IFERROR(IF(ABS(F16 - INDEX(L16:S16,$K$8)) < 0.001, 0, 1),0) -> 0 | M16: 15 | N16: 15 | O16: 15
K17: =IFERROR(IF(ABS(F17 - INDEX(L17:S17,$K$8)) < 0.001, 0, 1),0) -> 0
E18: Growth rate due to energy transistion/econcomic growth | F18: =INDEX($L18:$S18,$K$7) -> 0.02 | G18: % | K18: =IFERROR(IF(ABS(F18 - INDEX(L18:S18,$K$8)) < 0.001, 0, 1),0) -> 0 | M18: 0.02 | N18: 0.01 | O18: 0.03
K19: =IFERROR(IF(ABS(F19 - INDEX(L19:S19,$K$8)) < 0.001, 0, 1),0) -> 0
K20: 0
C21: Power system modelling cost reduciton | K21: =IFERROR(IF(ABS(F21 - INDEX(L21:S21,$K$8)) < 0.001, 0, 1),0) -> 0
E22: Internal labour to validate models and data | F22: =INDEX($L22:$S22,$K$7) -> 50 | G22: $'000 AUD | K22: 0 | M22: 50 | N22: 50 | O22: 50
E23: Average annaul consultant costs | F23: 250 | G23: $'000 AUD | K23: 0 | M23: 250 | N23: 250 | O23: 250
E24: Percentage saving due to accurate model and data | F24: =INDEX($L24:$S24,$K$7) -> 0.2 | G24: $'000 AUD | K24: 0 | M24: 0.2 | N24: 0.1 | O24: 0.3
K25: 0
C26: Unknown network state (pin boards) - safety risk | K26: 0
E27: Probability method | F27: =INDEX($L27:$S27,$K$7) -> 2 | G27: choice | K27: 0 | M27: 2 | N27: 2 | O27: 1
E28: Probability of human error / switching error resulting in an outage | F28: =INDEX($L28:$S28,$K$7) -> 0.004 | G28: % | K28: 0 | M28: 0.004 | N28: 0.002 | O28: 0.008
E29: Factor to adjust for activities not captured by current system | F29: 2 | G29: factor | K29: 0 | M29: 2 | N29: 1 | O29: 4
E30: Average annual switching events | F30: 1894 | G30: # | K30: 0 | M30: 1894 | N30: 1894 | O30: 1894
E31: Percentage avoided with base DMS and improved data | F31: =INDEX($L31:$S31,$K$7) -> 0.5 | G31: % | K31: 0 | M31: 0.5 | N31: =M31*0.75 -> 0.375 | O31: =M31*1.25 -> 0.625
K32: 0
C33: Connection process non-compliance costs | K33: 0
E34: Number of FIA per year | F34: =INDEX($L34:$S34,$K$7) -> 10 | G34: # | K34: 0 | M34: 10 | N34: 5 | O34: 15
E35: Non-compliance rate | F35: =INDEX($L35:$S35,$K$7) -> 0.25 | G35: % | K35: 0 | M35: 0.25 | N35: 0.1 | O35: 0.5
E36: Probability of incurring penalty | F36: 0.1 | G36: % | K36: =IFERROR(IF(ABS(F36 - INDEX(L36:S36,$K$8)) < 0.001, 0, 1),0) -> 0 | M36: 0.1 | N36: 0.05 | O36: 0.15
K37: 0
C38: Capital (field) efficiency improvement | K38: 0
E39: Number of distribution jobs schedule per year | F39: =INDEX($L39:$S39,$K$7) -> 443 | G39: # | K39: =IFERROR(IF(ABS(#REF! - INDEX(L39:S39,$K$8)) < 0.001, 0, 1),0) -> 0 | M39: 443 | N39: 443 | O39: 443
E40: Percentage cancelled due to planning / notification / human error | F40: =INDEX($L40:$S40,$K$7) -> 0.02 | G40: % | K40: =IFERROR(IF(ABS(#REF! - INDEX(L40:S40,$K$8)) < 0.001, 0, 1),0) -> 0 | M40: 0.02 | N40: 0.01 | O40: 0.03
E41: Average mobilisation cost per job - direct finanical cost to the work | F41: 10 | G41: $'000 AUD | K41: =IFERROR(IF(ABS(#REF! - INDEX(L41:S41,$K$8)) < 0.001, 0, 1),0) -> 0 | M41: 10 | N41: 5 | O41: 15
E42: Proportion of distribution jobs requiring an outage | F42: 0.25 | G42: % | K42: =IFERROR(IF(ABS(#REF! - INDEX(L42:S42,$K$8)) < 0.001, 0, 1),0) -> 0 | M42: 0.25 | N42: =M42*0.75 -> 0.1875 | O42: =M42*1.25 -> 0.3125
E43: Percentage avoided with base DMS and improved data | F43: 0.25 | G43: % | K43: =IFERROR(IF(ABS(#REF! - INDEX(L43:S43,$K$8)) < 0.001, 0, 1),0) -> 0 | M43: 0.25 | N43: =M43*0.75 -> 0.1875 | O43: =M43*1.25 -> 0.3125
K44: =IFERROR(IF(ABS(#REF! - INDEX(L44:S44,$K$8)) < 0.001, 0, 1),0) -> 0
C45: Human error / switching error resulting in outages | K45: =IFERROR(IF(ABS(#REF! - INDEX(L45:S45,$K$8)) < 0.001, 0, 1),0) -> 0
E46: Annual average lost load | F46: =INDEX($L46:$S46,$K$7) -> 2.2139375 | G46: MWh | K46: =IFERROR(IF(ABS(F46 - INDEX(L46:S46,$K$8)) < 0.001, 0, 1),0) -> 0 | M46: 2.2139375 | N46: 2.2139375 | O46: 4
E47: Customer weighted VCR | F47: 26.204 | G47: $'000 per MWh | K47: 0 | M47: 26.204 | N47: 26.204 | O47: 26.204
K48: 0
C49: Overall outage restoration efficiency - avoiding deterioration of reliabiliy | K49: 0
D50: Avoided deterioration in reliability | K50: 0
E51: Average annaul Lost Load (Unserved Energy, USE) | F51: =INDEX($L51:$S51,$K$7) -> 424 | G51: MWh | K51: 0 | M51: 424 | N51: 424 | O51: 424
E52: Customer weighted VCR | F52: 26.204 | G52: $ per MWh | K52: 0 | M52: 26.204 | N52: 26.204 | O52: 26.204
E53: Forecast % avoided lost load / reliability deterioration | F53: 0.05 | G53: % | K53: 0 | M53: 0.05 | N53: 0.05 | O53: 0.08
K54: 0
D55: Major event day | K55: 0
E56: Average annaul Lost Load (Unserved Energy, USE) | F56: =INDEX($L56:$S56,$K$7) -> 277 | G56: MWh | K56: 0 | M56: 277 | N56: 277 | O56: 277
E57: Customer weighted VCR | F57: 26.204 | G57: $ per MWh | K57: 0 | M57: 26.204 | N57: 26.204 | O57: 26.204
E58: Forecast % avoided lost load / reliability deterioration | F58: 0.1 | G58: % | K58: 0 | M58: 0.1 | N58: 0.1 | O58: 0.15
E59: Frequency | F59: 0.6 | G59: % | K59: 0 | M59: 0.6 | N59: 0.5 | O59: 0.7
K60: =IFERROR(IF(ABS(F60 - INDEX(L60:S60,$K$8)) < 0.001, 0, 1),0) -> 0
D61: Cyclone/major storm condition reliability | K61: 0
E62: Average annaul Lost Load (Unserved Energy, USE) | F62: =INDEX($L62:$S62,$K$7) -> 6710 | G62: MWh | K62: 0 | M62: 6710 | N62: 6710 | O62: 6710
E63: Customer weighted VCR | F63: 26.204 | G63: $ per MWh | K63: 0 | M63: 26.204 | N63: 26.204 | O63: 26.204
E64: Forecast % avoided lost load / reliability deterioration | F64: 0.1 | G64: % | K64: 0 | M64: 0.1 | N64: 0.1 | O64: 0.15
E65: Frequency | F65: 0.125 | G65: % | K65: 0 | M65: =1/8 -> 0.125 | N65: =1/10 -> 0.1 | O65: =1/6 -> 0.1666666667
K66: 0
C67: Efficiency in SC raised through reduced SLA costs | K67: 0
D68: Base DMS and improved data - make sure drawings represent normal state of the network | K68: 0
E69: Reduced drawing management and verification for pin up boards | F69: [c-i-c] | G69: $'000 AUD | K69: 0 | M69: [c-i-c] | N69: [c-i-c] | O69: [c-i-c]
E70: Annual standard FTE cost | F70: [c-i-c] | G70: % | K70: 0 | M70: [c-i-c] | N70: [c-i-c] | O70: [c-i-c]
K71: 0
D72: Pin board updates | K72: 0
E73: Number of FTEs required | F73: [c-i-c] | G73: # | K73: 0 | M73: [c-i-c] | N73: [c-i-c] | O73: [c-i-c]
E74: Annual standard FTE cost | F74: [c-i-c] | G74: $'000 AUD | K74: 0 | M74: [c-i-c] | N74: [c-i-c] | O74: [c-i-c]
K75: 0
D76: Switching and permitting process | K76: =IFERROR(IF(ABS(F76 - INDEX(L76:S76,$K$8)) < 0.001, 0, 1),0) -> 0
E77: Number of FTEs required | F77: [c-i-c] | G77: # | K77: 0 | M77: [c-i-c] | N77: [c-i-c] | O77: [c-i-c]
E78: Savings in effort | F78: [c-i-c] | G78: % | K78: 0 | M78: [c-i-c] | N78: [c-i-c] | O78: [c-i-c]
E79: Annual standard FTE cost | F79: [c-i-c] | G79: $'000 AUD | K79: 0 | M79: [c-i-c] | N79: [c-i-c] | O79: [c-i-c]
E80: Total number of distribution jobs per year | F80: =INDEX($L80:$S80,$K$7) -> 1800 | G80: # | K80: 0 | M80: 1800 | N80: 1800 | O80: 1800
K81: 0
K82: 0
K83: 0
K84: 0
K85: 0
A86: end variable range
E88: Scenario list
E89: =TRANSPOSE(OFFSET($L$7,,1,,COUNT($L$7:$S$7))) -> 1
E90: 2
E91: 3
E92: 4
E93: 5
E94: 6
A98: =SectionNumber -> 1 | C98: END

Sheet Const
A2: Energy at Risk
A7: =SectionNumber -> 1 | C7: General data
C9: Genreal data | D9: Value
C10: Start year | D10: 2024-07-01
C11: Vlauation period | D11: 30
C14: Value of customer reliablity by category | D14: Value | E14: Unit
C15: Residential | D15: 20.37 | E15: $'000 AUD per MWh
C16: Commercial | D16: 49.54 | E16: $'000 AUD per MWh
C17: Industrial | D17: 70.97 | E17: $'000 AUD per MWh
C18: Agricultural | D18: 42.14 | E18: $'000 AUD per MWh
C19: DKTL | D19: =SUMPRODUCT($D$15:$D$18,$D$23:$D$26) -> 26.204 | E19: $'000 AUD per MWh
C20: Source: Australian Energy Regulator, 2022 VCR Annual Adjustment, December 2022
C22: Percentage of customer types | D22: Value | E22: Unit
C23: Residential | D23: 0.8 | E23: %
C24: Commercial | D24: 0.2 | E24: %
C25: Industrial | D25: 0 | E25: %
C26: Agricultural | D26: 0 | E26: %
C27: Source: Power Water GIS
A29: =SectionNumber -> 2 | C29: Safety risk data
C31: Worker safety cost | D31: VSL / VSLY | E31: GDF | F31: Litigation | G31: Investigation | H31: Total cost | I31: Probability (LV assets) | J31: Probability (estimate)
C32: No consequence | D32: 0 | E32: 3 | F32: 0 | G32: 0 | H32: =D32*E32+F32+G32 -> 0 | I32: 0.91 | J32: 0.9994801689
C33: Insignificant | D33: 4.876 | E33: 3 | F33: 0 | G33: 0 | H33: =D33*E33+F33+G33 -> 14.628 | I33: 0.05 | J33: 1.015317989e-05
C34: Minor | D34: 15.19 | E34: 3 | F34: 15 | G34: 15 | H34: 75.57 | I34: 0.01 | J34: 2.030635978e-05
C35: Moderate | D35: 54.25 | E35: 3 | F35: 100 | G35: 15 | H35: 277.75 | I35: 0.005 | J35: 3.045953967e-05
C36: Major | D36: 1500 | E36: 3 | F36: 1000 | G36: 50 | H36: 5550 | I36: 0.002 | J36: 0.000114728
C37: Severe | D37: 5000 | E37: 3 | F37: 10000 | G37: 50 | H37: 25050 | I37: 0.001 | J37: 0.000344184
C39: Worker safety cost | D39: VSL / VSLY | E39: GDF | F39: Litigation | G39: Investigation | H39: Total cost | I39: Probability (LV assets) | J39: Probability (estimate)
C40: No consequence | D40: 0 | E40: 6 | F40: 0 | G40: 0 | H40: =D40*E40+F40+G40 -> 0 | I40: 0.91 | J40: 0.9994801689
C41: Insignificant | D41: 4.876 | E41: 6 | F41: 0 | G41: 0 | H41: =D41*E41+F41+G41 -> 29.256 | I41: 0.05 | J41: 1.015317989e-05
C42: Minor | D42: 15.19 | E42: 6 | F42: 15 | G42: 15 | H42: 121.14 | I42: 0.01 | J42: 2.030635978e-05
C43: Moderate | D43: 54.25 | E43: 6 | F43: 100 | G43: 15 | H43: 440.5 | I43: 0.005 | J43: 3.045953967e-05
C44: Major | D44: 1500 | E44: 6 | F44: 1000 | G44: 50 | H44: 10050 | I44: 0.002 | J44: 0.000114728
C45: Severe | D45: 5000 | E45: 6 | F45: 10000 | G45: 50 | H45: 40050 | I45: 0.001 | J45: 0.000344184
A48: =SectionNumber -> 3 | C48: Safety risk data
C50: Civil Penalties | D50: Amount | E50: Unit
C51: Teir 1 | D51: 188 | E51: $'000 AUD
C52: Teir 2 | D52: 1500 | E52: $'000 AUD
C53: Teir 3 | D53: 11000 | E53: $'000 AUD
A58: =SectionNumber -> 4 | C58: END

Sheet Time series
A2: Energy at Risk
C5: Period commencing | E5: date | I5: =CHOOSE($E$21,I26,I33) -> 2024-07-01 | J5: 2025-07-01 | K5: 2026-07-01 | L5: 2027-07-01 | M5: 2028-07-01 | N5: 2029-07-01 | O5: 2030-07-01 | P5: 2031-07-01 | Q5: 2032-07-01 | R5: 2033-07-01 | S5: 2034-07-01 | T5: 2035-07-01 | U5: 2036-07-01 | V5: 2037-07-01 | W5: 2038-07-01 | X5: 2039-07-01 | Y5: 2040-07-01 | Z5: 2041-07-01 | AA5: 2042-07-01 | AB5: 2043-07-01 | AC5: 2044-07-01 | AD5: 2045-07-01 | AE5: 2046-07-01 | AF5: 2047-07-01 | AG5: 2048-07-01 | AH5: 2049-07-01 | AI5: 2050-07-01 | AJ5: 2051-07-01 | AK5: 2052-07-01 | AL5: 2053-07-01 | AM5: 2054-07-01 | AN5: 2055-07-01
C6: Period ending | E6: date | I6: =CHOOSE($E$21,I27,I34) -> 2025-06-30 | J6: 2026-06-30 | K6: 2027-06-30 | L6: 2028-06-30 | M6: 2029-06-30 | N6: 2030-06-30 | O6: 2031-06-30 | P6: 2032-06-30 | Q6: 2033-06-30 | R6: 2034-06-30 | S6: 2035-06-30 | T6: 2036-06-30 | U6: 2037-06-30 | V6: 2038-06-30 | W6: 2039-06-30 | X6: 2040-06-30 | Y6: 2041-06-30 | Z6: 2042-06-30 | AA6: 2043-06-30 | AB6: 2044-06-30 | AC6: 2045-06-30 | AD6: 2046-06-30 | AE6: 2047-06-30 | AF6: 2048-06-30 | AG6: 2049-06-30 | AH6: 2050-06-30 | AI6: 2051-06-30 | AJ6: 2052-06-30 | AK6: 2053-06-30 | AL6: 2054-06-30 | AM6: 2055-06-30 | AN6: 2056-06-30
C7: Period number | E7: number | I7: =CHOOSE($E$21,I28,I35) -> 1 | J7: 2 | K7: 3 | L7: 4 | M7: 5 | N7: 6 | O7: 7 | P7: 8 | Q7: 9 | R7: 10 | S7: 11 | T7: 12 | U7: 13 | V7: 14 | W7: 15 | X7: 16 | Y7: 17 | Z7: 18 | AA7: 19 | AB7: 20 | AC7: 21 | AD7: 22 | AE7: 23 | AF7: 24 | AG7: 25 | AH7: 26 | AI7: 27 | AJ7: 28 | AK7: 29 | AL7: 30 | AM7: 31 | AN7: 32
C8: Valuation period | E8: flag | I8: =CHOOSE($E$21,I29,I36) -> 1 | J8: 1 | K8: 1 | L8: 1 | M8: 1 | N8: 1 | O8: 1 | P8: 1 | Q8: 1 | R8: 1 | S8: 1 | T8: 1 | U8: 1 | V8: 1 | W8: 1 | X8: 1 | Y8: 1 | Z8: 1 | AA8: 1 | AB8: 1 | AC8: 1 | AD8: 1 | AE8: 1 | AF8: 1 | AG8: 1 | AH8: 1 | AI8: 1 | AJ8: 1 | AK8: 1 | AL8: 1 | AM8: 0 | AN8: 0
C10: Description | D10: Constant | E10: Unit
A14: =SectionNumber -> 1 | C14: Time series
B16: =SectionNumber -> 1.1 | C16: From Const tab
C17: Start year | D17: =Const!D10 -> 2024-07-01 | E17: Year
C18: Period number
C19: Valuation period | D19: =Const!D11 -> 30 | E19: Year
C20: =Scen!E15 -> Discount rate | D20: =Scen!F15 -> 0.0561 | E20: =Scen!G15 -> %
C21: Financial year / Calendar year | D21: Financial | E21: 2
B25: =SectionNumber -> 1.2 | C25: Calendar year
C26: Period commencing | E26: date | I26: =DATE(YEAR($D17)+I28-1,1,DAY($D17)) -> 2024-01-01 | J26: 2025-01-01 | K26: 2026-01-01 | L26: 2027-01-01 | M26: 2028-01-01 | N26: 2029-01-01 | O26: 2030-01-01 | P26: 2031-01-01 | Q26: 2032-01-01 | R26: 2033-01-01 | S26: 2034-01-01 | T26: 2035-01-01 | U26: 2036-01-01 | V26: 2037-01-01 | W26: 2038-01-01 | X26: 2039-01-01 | Y26: 2040-01-01 | Z26: 2041-01-01 | AA26: 2042-01-01 | AB26: 2043-01-01 | AC26: 2044-01-01 | AD26: 2045-01-01 | AE26: 2046-01-01 | AF26: 2047-01-01 | AG26: 2048-01-01 | AH26: 2049-01-01 | AI26: 2050-01-01 | AJ26: 2051-01-01 | AK26: 2052-01-01 | AL26: 2053-01-01 | AM26: 2054-01-01 | AN26: 2055-01-01
C27: Period ending | E27: date | I27: =DATE(YEAR($I26)+I28,MONTH($I26),DAY($I26)-1) -> 2024-12-31 | J27: =DATE(YEAR($I26)+J28,MONTH($I26),DAY($I26)-1) -> 2025-12-31 | K27: 2026-12-31 | L27: 2027-12-31 | M27: 2028-12-31 | N27: 2029-12-31 | O27: 2030-12-31 | P27: 2031-12-31 | Q27: 2032-12-31 | R27: 2033-12-31 | S27: 2034-12-31 | T27: 2035-12-31 | U27: 2036-12-31 | V27: 2037-12-31 | W27: 2038-12-31 | X27: 2039-12-31 | Y27: 2040-12-31 | Z27: 2041-12-31 | AA27: 2042-12-31 | AB27: 2043-12-31 | AC27: 2044-12-31 | AD27: 2045-12-31 | AE27: 2046-12-31 | AF27: 2047-12-31 | AG27: 2048-12-31 | AH27: 2049-12-31 | AI27: 2050-12-31 | AJ27: 2051-12-31 | AK27: 2052-12-31 | AL27: 2053-12-31 | AM27: 2054-12-31 | AN27: 2055-12-31
C28: Period number | E28: number | I28: =H28+1 -> 1 | J28: =I28+1 -> 2 | K28: 3 | L28: 4 | M28: 5 | N28: 6 | O28: 7 | P28: 8 | Q28: 9 | R28: 10 | S28: 11 | T28: 12 | U28: 13 | V28: 14 | W28: 15 | X28: 16 | Y28: 17 | Z28: 18 | AA28: 19 | AB28: 20 | AC28: 21 | AD28: 22 | AE28: 23 | AF28: 24 | AG28: 25 | AH28: 26 | AI28: 27 | AJ28: 28 | AK28: 29 | AL28: 30 | AM28: 31 | AN28: 32
C29: Valuation period | E29: flag | I29: =IF(I28<=$D$19,1,0) -> 1 | J29: 1 | K29: 1 | L29: 1 | M29: 1 | N29: 1 | O29: 1 | P29: 1 | Q29: 1 | R29: 1 | S29: 1 | T29: 1 | U29: 1 | V29: 1 | W29: 1 | X29: 1 | Y29: 1 | Z29: 1 | AA29: 1 | AB29: 1 | AC29: 1 | AD29: 1 | AE29: 1 | AF29: 1 | AG29: 1 | AH29: 1 | AI29: 1 | AJ29: 1 | AK29: 1 | AL29: 1 | AM29: 0 | AN29: 0
B32: =SectionNumber -> 1.3 | C32: Financial year
C33: Period commencing | E33: date | I33: =DATE(YEAR($D17)+I35-1,MONTH($D17),DAY($D17)) -> 2024-07-01 | J33: 2025-07-01 | K33: 2026-07-01 | L33: 2027-07-01 | M33: 2028-07-01 | N33: 2029-07-01 | O33: 2030-07-01 | P33: 2031-07-01 | Q33: 2032-07-01 | R33: 2033-07-01 | S33: 2034-07-01 | T33: 2035-07-01 | U33: 2036-07-01 | V33: 2037-07-01 | W33: 2038-07-01 | X33: 2039-07-01 | Y33: 2040-07-01 | Z33: 2041-07-01 | AA33: 2042-07-01 | AB33: 2043-07-01 | AC33: 2044-07-01 | AD33: 2045-07-01 | AE33: 2046-07-01 | AF33: 2047-07-01 | AG33: 2048-07-01 | AH33: 2049-07-01 | AI33: 2050-07-01 | AJ33: 2051-07-01 | AK33: 2052-07-01 | AL33: 2053-07-01 | AM33: 2054-07-01 | AN33: 2055-07-01
C34: Period ending | E34: date | I34: =DATE(YEAR($I33)+I35,MONTH($I33),DAY($I33)-1) -> 2025-06-30 | J34: =DATE(YEAR($I33)+J35,MONTH($I33),DAY($I33)-1) -> 2026-06-30 | K34: 2027-06-30 | L34: 2028-06-30 | M34: 2029-06-30 | N34: 2030-06-30 | O34: 2031-06-30 | P34: 2032-06-30 | Q34: 2033-06-30 | R34: 2034-06-30 | S34: 2035-06-30 | T34: 2036-06-30 | U34: 2037-06-30 | V34: 2038-06-30 | W34: 2039-06-30 | X34: 2040-06-30 | Y34: 2041-06-30 | Z34: 2042-06-30 | AA34: 2043-06-30 | AB34: 2044-06-30 | AC34: 2045-06-30 | AD34: 2046-06-30 | AE34: 2047-06-30 | AF34: 2048-06-30 | AG34: 2049-06-30 | AH34: 2050-06-30 | AI34: 2051-06-30 | AJ34: 2052-06-30 | AK34: 2053-06-30 | AL34: 2054-06-30 | AM34: 2055-06-30 | AN34: 2056-06-30
C35: Period number | E35: number | I35: =H35+1 -> 1 | J35: =I35+1 -> 2 | K35: 3 | L35: 4 | M35: 5 | N35: 6 | O35: 7 | P35: 8 | Q35: 9 | R35: 10 | S35: 11 | T35: 12 | U35: 13 | V35: 14 | W35: 15 | X35: 16 | Y35: 17 | Z35: 18 | AA35: 19 | AB35: 20 | AC35: 21 | AD35: 22 | AE35: 23 | AF35: 24 | AG35: 25 | AH35: 26 | AI35: 27 | AJ35: 28 | AK35: 29 | AL35: 30 | AM35: 31 | AN35: 32
C36: Valuation period | E36: flag | I36: =IF(I35<=$D$19,1,0) -> 1 | J36: 1 | K36: 1 | L36: 1 | M36: 1 | N36: 1 | O36: 1 | P36: 1 | Q36: 1 | R36: 1 | S36: 1 | T36: 1 | U36: 1 | V36: 1 | W36: 1 | X36: 1 | Y36: 1 | Z36: 1 | AA36: 1 | AB36: 1 | AC36: 1 | AD36: 1 | AE36: 1 | AF36: 1 | AG36: 1 | AH36: 1 | AI36: 1 | AJ36: 1 | AK36: 1 | AL36: 1 | AM36: 0 | AN36: 0
A59: =SectionNumber -> 2 | C59: END

Sheet Supporting data
C13: Supporting data

Sheet Sheet1
A1: Benefit type | B1: Project area | C1: Benefit | D1: Incorported | E1: How
A2: Compliance | B2: GIS Upgrade (Out of Support GIS) | C2: Failure to have a GIS will result in PWC not meeting its technical/safety obligations | D2: No | E2: Non quantified benefit
A3: Customers | B3: OMS/DMS Enhancements & Remove Manual Pin Board | C3: Enhanced information for consumers
A4: Data improvement | B4: GIS Upgrade (Out of Support GIS) | C4: Will allow implementation of any data improvement within GIS and key part of Unified Network Model | D4: No | E4: Non quantified benefit
A5: Data improvement | B5: GIS Upgrade (Out of Support GIS) | C5: Modelling non-network asset | D5: No | E5: Non quantified benefit
A6: Data improvement | B6: Data Quality Improvements | C6: Improved asset management from better asset data | D6: No | E6: Non quantified benefit
A7: Data improvement | B7: Enterprise Wide Common Information Model | C7: Achieve a single definitive asset source view reducing risk of inconsistency | D7: No | E7: Non quantified benefit
A8: Data improvement | B8: Enterprise Wide Common Information Model | C8: Improves asset data inventory from definitive list | D8: No | E8: Non quantified benefit
A9: DER transition | B9: Data Quality Improvements | C9: Essential for confirming available hosting capacity | D9: No | E9: DOE business case??
A10: Data improvement | B10: GIS Upgrade (Out of Support GIS) | C10: Operational efficiencies from speed increases when editing GIS data | D10: No | E10: Non quantified benefit
A11: FTE efficiency | B11: Data Quality Improvements | C11: Efficiencies of avoided cancelled jobs with improved data | D11: Yes | E11: Higher mobilisation costs
A12: FTE efficiency - pin board | B12: OMS/DMS Enhancements & Remove Manual Pin Board | C12: Operator Inefficiencies with needing to manually pin the state of the network | D12: Yes | E12: Cost of labour
A13: FTE efficiency - pin board | B13: OMS/DMS Enhancements & Remove Manual Pin Board | C13: Challenge/Delay of undertaking manual pinning during a major event day | D13: Yes | E13: Cost of labour
A14: FTE efficiency - process | B14: OMS/DMS Enhancements & Remove Manual Pin Board | C14: Efficiency benefit from improved switching process | D14: Yes | E14: Cost of labour
A15: FTE efficiency - process | B15: OMS/DMS Enhancements & Remove Manual Pin Board | C15: Efficiency benefits from improved permitting processing | D15: Yes | E15: Cost of labour
A16: FTE efficiency / safety | B16: OMS/DMS Enhancements & Remove Manual Pin Board | C16: Inability to relocate Pin Board with state of the network in an emergency | D16: No | E16: Very low probability event. Not sure how to quantify wihtout double counting other safety risk
A17: ICT/Cyber | B17: GIS Upgrade (Out of Support GIS) | C17: Not operating a critical system without support( Used by many departments within PWC) | D17: No | E17: Non quantified benefit
A18: ICT/Cyber | B18: GIS Upgrade (Out of Support GIS) | C18: Improved Cyber security | D18: No | E18: Very low risk of cyber issue with pin board - this might actually be an increased risk with the new system
A19: ICT/Cyber | B19: GIS Upgrade (Out of Support GIS) | C19: Avoid increase in maintenance cost from unsupported software
A20: Key person | B20: OMS/DMS Enhancements & Remove Manual Pin Board | C20: In depth knowledge of network required for controllers to safely manage outages which put dependencies on key people
A21: Model | B21: Unified Network Model | C21: Avoids multiple representation of the connectivity model that may be inconsistent (with safety and operational risks) | D21: Yes | E21: Improved modelling efficiency
A22: Model | B22: Unified Network Model | C22: Single model to maintain rather than multiple models – Efficiency benefits | D22: Yes | E22: Improved modelling efficiency
A23: Model | B23: Enterprise Wide Common Information Model | C23: Efficiencies in maintaining a single common data model across the key system | D23: Yes | E23: Improved modelling efficiency
A24: Reliability | B24: Data Quality Improvements | C24: Used by OMS to provide faster restoration | D24: Yes | E24: reduction in USE
A25: Reliability | B25: OMS/DMS Enhancements & Remove Manual Pin Board | C25: Improves the restoration of outages relying on manual pinning | D25: Yes | E25: reduction in USE
A26: Reliability | B26: OMS/DMS Enhancements & Remove Manual Pin Board | C26: Reliability benefits to consumers from faster restoration | D26: Yes | E26: reduction in USE
A27: Safety | B27: Data Quality Improvements | C27: Key safety decision on operating the network require accurate data | D27: Yes | E27: quantified safety risk as per risk quantification procedure
A28: Safety | B28: OMS/DMS Enhancements & Remove Manual Pin Board | C28: Safety risk with field not able to see the pinned state of the network and more chance of an incorrect state of the network being assumed | D28: Yes | E28: quantified safety risk as per risk quantification procedure
A29: System | B29: Unified Network Model | C29: Needed to allow the upgrade of GIS | D29: No | E29: Non quantified benefit
C33: Protection / fault level monitoring (managing operational restrictions) - qualitative only

Sheet Sheet2
A1: Growth rates based on EV and underlying demand from Zubin - maybe for use instead of static 2% or 5% assumptions?
A3: Electric vehicles | C3: 0.3474228508 | D3: 2.171604856 | E3: 4.03740354 | F3: 5.945237901 | G3: 7.895518637 | H3: 9.888647503 | I3: 11.92501666 | J3: 14.00500797 | K3: 16.12899234 | L3: 27.13444343 | M3: 38.37860042 | N3: 49.8633877 | O3: 61.59065869 | P3: 73.56219134 | Q3: 85.77968354 | R3: 98.24474835 | S3: 110.958909 | T3: 123.9235938 | U3: 137.1401309 | V3: 160.173241 | W3: 183.6581974 | X3: 207.5970236 | Y3: 231.9915325 | Z3: 256.8433149 | AA3: 282.153728 | AB3: 307.923884 | AC3: 334.1546377 | AD3: 360.8465738 | AE3: 387.9999938
D4: =D3/C3 -> 6.250610318 | E4: =E3/D3 -> 1.859179642 | F4: 1.472539924 | G4: 1.328040823 | H4: 1.252437991 | I4: 1.205929997 | J4: 1.174422508 | K4: 1.151658919 | L4: 1.682339657 | M4: 1.414386866 | N4: 1.299249768 | O4: 1.235188011 | P4: 1.194372538 | Q4: 1.166083853 | R4: 1.145314884 | S4: 1.129413133 | T4: 1.116842216 | U4: 1.106650692 | V4: 1.1679531 | W4: 1.146622221 | X4: 1.130344447 | Y4: 1.117508953 | Z4: 1.107123661 | AA4: 1.098544177 | AB4: 1.091333743 | AC4: 1.085185837 | AD4: 1.079878993
C6: FY22 | D6: FY23 | E6: FY24 | F6: FY25 | G6: FY26 | H6: FY27 | I6: FY28 | J6: FY29 | K6: FY30 | L6: FY31 | M6: FY32 | N6: FY33 | O6: FY34 | P6: FY35 | Q6: FY36 | R6: FY37 | S6: FY38 | T6: FY39 | U6: FY40 | V6: FY41 | W6: FY42 | X6: FY43 | Y6: FY44 | Z6: FY45 | AA6: FY46 | AB6: FY47 | AC6: FY48 | AD6: FY49 | AE6: FY50
A7: underlying demand growth | C7: 1415.907423 | D7: 1417.731605 | E7: 1419.597404 | F7: 1421.505238 | G7: 1423.455519 | H7: 1425.448648 | I7: 1427.485017 | J7: 1429.565008 | K7: 1431.688992 | L7: 1442.694443 | M7: 1453.9386 | N7: 1465.423388 | O7: 1477.150659 | P7: 1489.122191 | Q7: 1501.339684 | R7: 1513.804748 | S7: 1526.518909 | T7: 1539.483594 | U7: 1552.700131 | V7: 1575.733241 | W7: 1599.218197 | X7: 1623.157024 | Y7: 1647.551533 | Z7: 1672.403315 | AA7: 1697.713728 | AB7: 1723.483884 | AC7: 1749.714638 | AD7: 1776.406574 | AE7: 1803.559994
C8: 0 | D8: =D7/C7-1 -> 0.001288348359 | E8: =E7/D7-1 -> 0.001316045066 | F8: 0.001343926353 | G8: 0.001371982799 | H8: 0.00140020453 | I8: 0.00142858121 | J8: 0.001457102031 | K8: 0.001485755704 | L8: 0.007687040379 | M8: 0.00779385894 | N8: 0.007899086853 | O8: 0.008002650351 | P8: 0.008104476398 | Q8: 0.008204492737 | R8: 0.00830262794 | S8: 0.008398811449 | T8: 0.008492973614 | U8: 0.008585045728 | V8: 0.01483422954 | W8: 0.01490414477 | X8: 0.0149690807 | Y8: 0.01502905052 | Z8: 0.01508406981 | AA8: 0.01513415627 | AB8: 0.01517932948 | AC8: 0.01521961067 | AD8: 0.01525502244
